Analysed Amount,Supplier,3CCN - Level 3 Cost Centre Name,5CCN - Level 5 Cost Centre Name,9CCN - Level 9 Cost Centre Name,9CCC - Level 9 Cost Centre Code,9AN - Level 9 Account Name,Date Paid,5AN - Level 5 Account Name,Transaction Reference,3CCN - Level 3 Cost Centre Name,Dept
8036040.43,Nottinghamshire County Council,Collection Fund,Precepting Authorities,Notts Cc Precept & Ndr Share,5930,Precept Paid,01/02/22,Collection Fund Accounts,125894,Collection Fund,Finance
7154955.2,Nottinghamshire County Council,Collection Fund,Precepting Authorities,Notts Cc Precept & Ndr Share,5930,Precept Paid,08/03/22,Collection Fund Accounts,125895,Collection Fund,Finance
5821390,Dclg,General Fund Summary,Cies,Taxn & Non Spec Grant Inc,1994,Business Rates S31 Grants,08/03/22,Transfers Income,138121,General Fund Summary,Finance
1076162,Notts Police & Crime Commissioner,Collection Fund,Precepting Authorities,Notts Police Precept & Ndr,5932,Precept Paid,01/02/22,Collection Fund Accounts,125914,Collection Fund,Finance
1076160.9,Notts Police & Crime Commissioner,Collection Fund,Precepting Authorities,Notts Police Precept & Ndr,5932,Precept Paid,08/03/22,Collection Fund Accounts,125915,Collection Fund,Finance
1002094.63,Willmott Dixon Construction Ltd,Capital Expenditure,Transformation & Innovation,Bingham Leisure Hub,314,Contractors-Third Party,17/03/22,Third Party Payments,138549,Capital Expenditure,Neighbourhoods
773525.32,Willmott Dixon Construction Ltd,Capital Expenditure,Transformation & Innovation,Bingham Leisure Hub,314,Contractors-Third Party,14/01/22,Third Party Payments,136002,Capital Expenditure,Neighbourhoods
680425.69,Willmott Dixon Construction Ltd,Capital Expenditure,Transformation & Innovation,Bingham Leisure Hub,314,Contractors-Third Party,18/02/22,Third Party Payments,137483,Capital Expenditure,Neighbourhoods
393780.35,Notts Fire And Rescue Service,Collection Fund,Precepting Authorities,Notts Fire Precept & Ndr,5933,Precept Paid,01/02/22,Collection Fund Accounts,125904,Collection Fund,Finance
327322.78,As Enterprises Limited,Capital Expenditure,Transformation & Innovation,The Crematorium,684,Contractors-Third Party,07/03/22,Third Party Payments,138186,Capital Expenditure,Neighbourhoods
295881.9,Notts Fire And Rescue Service,Collection Fund,Precepting Authorities,Notts Fire Precept & Ndr,5933,Precept Paid,08/03/22,Collection Fund Accounts,125905,Collection Fund,Finance
170559.17,As Enterprises Limited,Capital Expenditure,Transformation & Innovation,The Crematorium,684,Contractors-Third Party,04/02/22,Third Party Payments,136649,Capital Expenditure,Neighbourhoods
160563,Nottinghamshire County Council,Neighbourhoods,Leisure Contracts & Car Parks,East Leake Leisure Centre,1700,Olas - Notts County Council,22/03/22,Third Party Payments,137913,Neighbourhoods,Neighbourhoods
152172.61,Streetwise Environmental Ltd           1,Neighbourhoods,Waste & Fleet Management,Streetwise Contract,8301,Contractors-Third Party,29/03/22,Third Party Payments,138703,Neighbourhoods,Neighbourhoods
147261.53,Streetwise Environmental Ltd           1,Neighbourhoods,Waste & Fleet Management,Streetwise Contract,8301,Contractors-Third Party,04/01/22,Third Party Payments,134652,Neighbourhoods,Neighbourhoods
147261.53,Streetwise Environmental Ltd           1,Neighbourhoods,Waste & Fleet Management,Streetwise Contract,8301,Contractors-Third Party,25/01/22,Third Party Payments,136087,Neighbourhoods,Neighbourhoods
147261.53,Streetwise Environmental Ltd           1,Neighbourhoods,Waste & Fleet Management,Streetwise Contract,8301,Contractors-Third Party,01/03/22,Third Party Payments,137817,Neighbourhoods,Neighbourhoods
140246.01,As Enterprises Limited,Capital Expenditure,Transformation & Innovation,The Crematorium,684,Contractors-Third Party,29/03/22,Third Party Payments,138946,Capital Expenditure,Neighbourhoods
113107.59,Nottinghamshire County Council,General Fund Summary,Cies,Taxn & Non Spec Grant Inc,1994,Ndr Income,07/03/22,Transfers Income,137828,General Fund Summary,Finance
96000,Trent Bridge Community Trust,Communities,Community Development,Community Development,1581,Projects & Activities,22/03/22,Supplies & Services,137852,Communities,Neighbourhoods
96000,Trent Bridge Community Trust,Communities,Community Development,Community Development,1581,Projects & Activities,29/03/22,Supplies & Services,138552,Communities,Neighbourhoods
92071.84,Marsh Ltd,Finance & Corporate Services,Financial Services,Main Premiums,4920,Motor Ins Premiums,29/03/22,Transport Related Expenditure,138933,Finance & Corporate Services,Finance
77406.28,East Leake Parish Council,Liabilities,Long Term Liabilities,Lantern Ln El 12/01821,6744,Balance Sheet Exp In The Year,16/02/22,Balance Sheet Exp In The Year,137359,Liabilities,Finance
67580.27,South Kesteven D C,Communities,Building Control,Building Control - Fee Earning,1151,Other Local Authorities,14/01/22,Third Party Payments,135418,Communities,Planning
64750.29,J Pugh-Lewis Limited,Capital Expenditure,Communities,Gresham Pitches,280,Projects & Activities,05/01/22,Supplies & Services,134057,Capital Expenditure,Economic Growth
62986.63,Proludic,Capital Expenditure,Communities,Abbey Park Play Area,640,Contractors-Third Party,29/03/22,Third Party Payments,138631,Capital Expenditure,Corporate Services
62381,Parkwood Leisure Ltd,Capital Expenditure,Transformation & Innovation,Bingham Leisure Hub,314,Other Equipment/Materials,08/02/22,Supplies & Services,137080,Capital Expenditure,Neighbourhoods
61411.96,Proludic,Capital Expenditure,Communities,Alford Rd Play Area,641,Contractors-Third Party,29/03/22,Third Party Payments,138863,Capital Expenditure,Corporate Services
58315.42,Marsh Ltd,Finance & Corporate Services,Financial Services,Main Premiums,4920,Premises Ins Premiums,29/03/22,Premises Related Expenditure,138902,Finance & Corporate Services,Finance
55477.26,East Leake Parish Council,Liabilities,Long Term Liabilities,Kirk Ley Rd 12 01840 Out,6770,Balance Sheet Exp In The Year,29/03/22,Balance Sheet Exp In The Year,138934,Liabilities,Finance
53855.96,Nottingham Developments Ltd,Capital Expenditure,Communities,Gamston Community Hall Enhance,317,Contractors-Third Party,07/01/22,Third Party Payments,135734,Capital Expenditure,Neighbourhoods
52532.9,Nottingham City Council,Capital Expenditure,Neighbourhoods,Rbc Ev Network,900,Grants,07/03/22,Supplies & Services,137827,Capital Expenditure,Neighbourhoods
48000,Old Barn Audio Ltd,Capital Expenditure,Transformation & Innovation,Bingham Leisure Hub,314,Contractors-Third Party,18/01/22,Third Party Payments,136140,Capital Expenditure,Neighbourhoods
46599.77,Nottingham City Council,Neighbourhoods,Waste & Fleet Management,Fleet,8600,Contractors-Transport,15/03/22,Transport Related Expenditure,138132,Neighbourhoods,Neighbourhoods
44000,Framework Housing Association,Capital Expenditure,Neighbourhoods,Registered Housing Providers,301,Grants,14/01/22,Supplies & Services,135549,Capital Expenditure,Public Protection
43678.89,Canal & River Trust,Communities,Community Development,Grantham Canal,1284,Legal & Professional Services,22/03/22,Supplies & Services,138159,Communities,Neighbourhoods
43384.92,Parkwood Leisure Ltd,Capital Expenditure,Transformation & Innovation,Bingham Leisure Hub,314,Other Equipment/Materials,08/02/22,Supplies & Services,136387,Capital Expenditure,Neighbourhoods
39610.94,Nottingham City Council,Neighbourhoods,Waste & Fleet Management,Fleet,8600,Contractors-Transport,01/02/22,Transport Related Expenditure,136541,Neighbourhoods,Neighbourhoods
37518.19,Nottingham City Council,Neighbourhoods,Waste & Fleet Management,Fleet,8600,Contractors-Transport,22/03/22,Transport Related Expenditure,138498,Neighbourhoods,Neighbourhoods
32932.45,Nottingham City Council,Neighbourhoods,Waste & Fleet Management,Fleet,8600,Contractors-Transport,05/01/22,Transport Related Expenditure,135703,Neighbourhoods,Neighbourhoods
31727.09,Savills Uk Limited,Capital Income,Capital Receipts,Disposal Of The Old Depot Site,9044,Legal & Professional Services,15/03/22,Supplies & Services,138374,Capital Income,Neighbourhoods
30653.43,Limonta Smith Jv Ltd,Communities,Community Development,Recreational Open Spaces,1280,Contractors-Third Party,25/01/22,Third Party Payments,135965,Communities,Neighbourhoods
30011.11,Eon,Neighbourhoods,Environmental Health,Climate Change Costs,1585,Projects & Activities,18/02/22,Supplies & Services,135702,Neighbourhoods,Neighbourhoods
29966.71,Nottingham City Council,Neighbourhoods,Waste & Fleet Management,Fleet,8600,Diesel,07/01/22,Transport Related Expenditure,135560,Neighbourhoods,Neighbourhoods
29885.05,Limonta Smith Jv Ltd,Capital Expenditure,Communities,Gresham Pitches,280,Contractors-Third Party,23/02/22,Third Party Payments,135966,Capital Expenditure,Economic Growth
28530.14,Alliance Contracting Solutions Ltd,Capital Expenditure,Communities,Rcp Enhancements,504,Contractors-Third Party,22/03/22,Third Party Payments,138547,Capital Expenditure,Economic Growth
28521.52,Nottinghamshire County Council,Neighbourhoods,Leisure Contracts & Car Parks,East Leake Leisure Centre,1700,Olas - Notts County Council,22/03/22,Third Party Payments,135040,Neighbourhoods,Neighbourhoods
27315.98,Nottingham City Council,Neighbourhoods,Waste & Fleet Management,Fleet,8600,Diesel,17/03/22,Transport Related Expenditure,138541,Neighbourhoods,Neighbourhoods
26985.62,M J Robinson Ltd,Capital Expenditure,Communities,Lutterell Hall Enhancements,326,Contractors-Third Party,11/01/22,Third Party Payments,133509,Capital Expenditure,Economic Growth
25900,Notts County Council,Neighbourhoods,Emergency Planning,Emergency Planning,1041,O.L.A Staff,29/03/22,Employee Related Expenditure,138850,Neighbourhoods,Neighbourhoods
25198.23,East Leake Parish Council,Liabilities,Long Term Liabilities,Woodgate Rd El 14/02313,6747,Balance Sheet Exp In The Year,29/03/22,Balance Sheet Exp In The Year,138934,Liabilities,Finance
24848.48,M J Robinson Ltd,Capital Expenditure,Communities,Lutterell Hall Enhancements,326,Contractors-Third Party,11/01/22,Third Party Payments,134598,Capital Expenditure,Economic Growth
23741,Capita Software Services,Finance & Corporate Services,Ict,It Rechargeable Costs,4722,Maintenance Contracts - S&S,29/03/22,Supplies & Services,138441,Finance & Corporate Services,Corporate Services
22195.63,Broxtowe Borough Council,Neighbourhoods,Leisure Contracts & Car Parks,Car Parks,1900,Contractors-Supplies & Servs,29/03/22,Supplies & Services,138689,Neighbourhoods,Neighbourhoods
21950,Commercial Surface Solutions Ltd,Transformation,Property Services,Open Spaces & Footpaths,1290,Responsive Works - Buildings,29/03/22,Premises Related Expenditure,138888,Transformation,Economic Growth
21007.5,Durant Cricket,Capital Expenditure,Communities,Gamston Community Hall Enhance,317,Contractors-Third Party,17/03/22,Third Party Payments,137095,Capital Expenditure,Neighbourhoods
18694.73,Softcat Plc,Capital Expenditure,Finance & Corporate Services,Technical Infrastructure,603,Computer Hardware,16/02/22,Supplies & Services,135870,Capital Expenditure,Corporate Services
17811.57,Nottinghamshire County Council,Neighbourhoods,Leisure Contracts & Car Parks,East Leake Leisure Centre,1700,Olas - Notts County Council,22/03/22,Third Party Payments,137914,Neighbourhoods,Neighbourhoods
17680,Apw (Nottm) Ltd,Capital Expenditure,Neighbourhoods,Disabled Facilities Grant,332,Grants,11/01/22,Supplies & Services,135741,Capital Expenditure,Public Protection
17642.62,Nottinghamshire County Council,Communities,Community Development,Holiday Activities & Food Prog,1594,Projects & Activities,08/03/22,Supplies & Services,137825,Communities,Neighbourhoods
17317.47,Countryside Properties Uk Limited,Liabilities,Long Term Liabilities,18/02269/Out Land Grooms Cotta,6782,Cash Received,07/03/22,Cash Received,137837,Liabilities,Finance
16737.45,Parkwood Leisure Ltd,Capital Expenditure,Transformation & Innovation,Bingham Leisure Hub,314,Other Equipment/Materials,01/02/22,Supplies & Services,136008,Capital Expenditure,Neighbourhoods
16563.49,Capita Software Services,Finance & Corporate Services,Ict,It Rechargeable Costs,4722,Maintenance Contracts - S&S,29/03/22,Supplies & Services,138513,Finance & Corporate Services,Corporate Services
15710.52,Softcat Plc,Capital Expenditure,Finance & Corporate Services,Technical Infrastructure,603,Computer Hardware,16/02/22,Supplies & Services,136283,Capital Expenditure,Corporate Services
14600.08,Alliance Contracting Solutions Ltd,Capital Expenditure,Communities,Rcp Enhancements,504,Contractors-Third Party,22/03/22,Third Party Payments,137069,Capital Expenditure,Economic Growth
14025,Advanced Business Solutions,Capital Expenditure,Finance & Corporate Services,Applications/Apps,605,Software,17/03/22,Supplies & Services,138194,Capital Expenditure,Corporate Services
13715,Gala Lights,Communities,Community Development,West Bridgford Town Centre,1875,Other Services,08/03/22,Supplies & Services,138196,Communities,Neighbourhoods
13607.15,Acs Systems Uk Ltd T/A Acs Office Solutions,Capital Expenditure,Finance & Corporate Services,Ict Replacement Programme,592,Computer Hardware,25/02/22,Supplies & Services,137094,Capital Expenditure,Obsolete
13548.93,Civica Uk Ltd,Finance & Corporate Services,Ict,It Rechargeable Costs,4722,Maintenance Contracts - S&S,07/03/22,Supplies & Services,137829,Finance & Corporate Services,Corporate Services
13470.03,Nec Software Solutions Uk Ltd,Finance & Corporate Services,Ict,It Rechargeable Costs,4722,Maintenance Contracts - S&S,11/03/22,Supplies & Services,137940,Finance & Corporate Services,Corporate Services
13267.88,Nottingham City Council,Neighbourhoods,Waste & Fleet Management,Fleet,8600,Contractors-Transport,15/03/22,Transport Related Expenditure,138543,Neighbourhoods,Neighbourhoods
13200,One51 Es Plastics (Uk) Ltd T/A Mgb Plastics,Neighbourhoods,Waste & Fleet Management,Waste Collection,8403,Other Equipment/Materials,08/02/22,Supplies & Services,136351,Neighbourhoods,Neighbourhoods
13200,One51 Es Plastics (Uk) Ltd T/A Mgb Plastics,Neighbourhoods,Waste & Fleet Management,Waste Collection,8403,Other Equipment/Materials,14/02/22,Supplies & Services,136451,Neighbourhoods,Neighbourhoods
12934.35,East Leake Parish Council,Transformation,Property Services,Parish Run Pub Conveniences,1072,Grants,29/03/22,Supplies & Services,138896,Transformation,Economic Growth
12561.19,Daisy Corporate Services Trading Limited,Finance & Corporate Services,Ict,Telephones,4870,Telephone Rental,01/02/22,Supplies & Services,133329,Finance & Corporate Services,Corporate Services
12375,One51 Es Plastics (Uk) Ltd T/A Mgb Plastics,Neighbourhoods,Waste & Fleet Management,Waste Collection,8403,Other Equipment/Materials,08/02/22,Supplies & Services,136180,Neighbourhoods,Neighbourhoods
12353,S P Rose Ltd,Transformation,Property Services,Open Spaces & Footpaths,1290,Responsive Works - Buildings,01/03/22,Premises Related Expenditure,137845,Transformation,Economic Growth
12099,Mazars Llp,Finance & Corporate Services,Financial Services,Corporate Management,4895,External Audit Fee,19/01/22,Supplies & Services,135691,Finance & Corporate Services,Finance
11680.87,Lodge Tyre Co.Ltd,Neighbourhoods,Waste & Fleet Management,Waste Collection,8403,Tyres,08/02/22,Transport Related Expenditure,136793,Neighbourhoods,Neighbourhoods
11184.04,Daisy Corporate Services Trading Limited,Finance & Corporate Services,Ict,Telephones,4870,Maintenance Contracts - S&S,01/02/22,Supplies & Services,133329,Finance & Corporate Services,Corporate Services
10542.19,J Pugh-Lewis Limited,Capital Expenditure,Communities,Gresham Pitches,280,Contractors-Third Party,29/03/22,Third Party Payments,138453,Capital Expenditure,Economic Growth
10396.6,Western Power Distribution (East Mids) Ltd,Transformation,Property Services,Land Holdings,1884,Planned Maintenance Recharge,07/03/22,Supplies & Services,138002,Transformation,Economic Growth
10110.84,Hanson Buildings Limited,Capital Expenditure,Communities,Rcp Enhancements,504,Contractors-Third Party,02/03/22,Third Party Payments,138015,Capital Expenditure,Economic Growth
10076.97,East Leake Parish Council,Liabilities,Long Term Liabilities,Woodgate Rd El 14/02313,6747,Balance Sheet Exp In The Year,16/02/22,Balance Sheet Exp In The Year,137359,Liabilities,Finance
10000,Grice Construction Ltd,Capital Expenditure,Neighbourhoods,Discretionary Top-Ups Dfgs,333,Grants,29/03/22,Supplies & Services,138988,Capital Expenditure,Public Protection
10000,Rural Retailers Ltd,Transformation,Economic Regeneration,High Streets Safely,1881,Legal & Professional Services,14/02/22,Supplies & Services,137344,Transformation,Economic Growth
9944,P J Lilley Limited,Capital Expenditure,Neighbourhoods,Disabled Facilities Grant,332,Grants,23/02/22,Supplies & Services,137397,Capital Expenditure,Public Protection
9905.79,Dcr Electrical Ltd,Capital Expenditure,Communities,Warm Homes On Prescription,337,Grants,21/01/22,Supplies & Services,136259,Capital Expenditure,Neighbourhoods
9688.16,As Enterprises Limited,Capital Expenditure,Transformation & Innovation,Cotgrave Phase 2,387,Contractors-Third Party,25/01/22,Third Party Payments,136350,Capital Expenditure,Economic Growth
9600,Nottingham City Council,Communities,Planning Policy,Development Plans,1232,Legal & Professional Services,29/03/22,Supplies & Services,138906,Communities,Neighbourhoods
9288,Nottingham City Council,Transformation,Human Resources,Human Resources,4709,Agency Staff,08/03/22,Employee Related Expenditure,137805,Transformation,Chief Executive Department 
8986.68,Dcr Electrical Ltd,Capital Expenditure,Communities,Warm Homes On Prescription,337,Grants,21/01/22,Supplies & Services,136280,Capital Expenditure,Neighbourhoods
8850,A R Signs Ltd,Finance & Corporate Services,"Performance, Repn & Comms",Performance And Reputation,4710,External Printing,29/03/22,Supplies & Services,138536,Finance & Corporate Services,Corporate Services
8800,Henry Riley Llp,Capital Expenditure,Transformation & Innovation,Bingham Leisure Hub,314,Legal & Professional Services,04/02/22,Supplies & Services,136374,Capital Expenditure,Neighbourhoods
8739.65,Lodge Tyre Co.Ltd,Neighbourhoods,Waste & Fleet Management,Waste Collection,8403,Tyres,02/03/22,Transport Related Expenditure,138087,Neighbourhoods,Neighbourhoods
8644.91,Ridge And Partners Llp,Capital Expenditure,Transformation & Innovation,The Crematorium,684,Legal & Professional Services,11/03/22,Supplies & Services,138310,Capital Expenditure,Neighbourhoods
8416.24,Toot Hill School,Neighbourhoods,Leisure Contracts & Car Parks,Leisure Management Contract,1795,Electricity,15/03/22,Premises Related Expenditure,138298,Neighbourhoods,Neighbourhoods
8239,Sherwood Contractors Ltd,Capital Expenditure,Neighbourhoods,Disabled Facilities Grant,332,Grants,16/02/22,Supplies & Services,137107,Capital Expenditure,Public Protection
8225.04,Wybone Limited,Transformation,Economic Regeneration,High Streets Safely,1881,Legal & Professional Services,29/03/22,Supplies & Services,138945,Transformation,Economic Growth
8155,Apw (Nottm) Ltd,Capital Expenditure,Neighbourhoods,Disabled Facilities Grant,332,Grants,29/03/22,Supplies & Services,139002,Capital Expenditure,Public Protection
7948,Mazars Llp,Finance & Corporate Services,Financial Services,Corporate Management,4895,External Audit Fee,11/01/22,Supplies & Services,135450,Finance & Corporate Services,Finance
7948,Mazars Llp,Finance & Corporate Services,Financial Services,Corporate Management,4895,External Audit Fee,14/02/22,Supplies & Services,136796,Finance & Corporate Services,Finance
7554.49,Broxtowe Borough Council,Neighbourhoods,Leisure Contracts & Car Parks,Car Parks,1900,Maintenance Contracts - S&S,29/03/22,Supplies & Services,138546,Neighbourhoods,Neighbourhoods
7500,Peter Tew & Co,Transformation,Customer Services,Customer Services,4807,Premises Rents,07/03/22,Premises Related Expenditure,137992,Transformation,Corporate Services
7494.71,Toot Hill School,Neighbourhoods,Leisure Contracts & Car Parks,Leisure Management Contract,1795,Electricity,15/03/22,Premises Related Expenditure,138299,Neighbourhoods,Neighbourhoods
7475,Trent Valley Plumbing & Build,Capital Expenditure,Neighbourhoods,Disabled Facilities Grant,332,Grants,22/03/22,Supplies & Services,138639,Capital Expenditure,Public Protection
7320,Saint-Gobain,Neighbourhoods,Waste & Fleet Management,Fleet,8600,Bio-Diesel,14/01/22,Transport Related Expenditure,135839,Neighbourhoods,Neighbourhoods
7270.08,South Kesteven D C,Communities,Building Control,Building Control - Fee Earning,1151,Other Local Authorities,14/01/22,Third Party Payments,135419,Communities,Planning
7073.68,Softcat Plc,Capital Expenditure,Finance & Corporate Services,Technical Infrastructure,603,Computer Hardware,16/02/22,Supplies & Services,136282,Capital Expenditure,Corporate Services
7015.78,Network Rail,Capital Expenditure,Transformation & Innovation,Bingham Leisure Hub,314,Legal & Professional Services,23/02/22,Supplies & Services,136352,Capital Expenditure,Neighbourhoods
6913.81,Churchill Specialist Contracting Ltd,Capital Expenditure,Transformation & Innovation,The Point,360,Contractors-Third Party,29/03/22,Third Party Payments,138373,Capital Expenditure,Neighbourhoods
6900,G2 Recruitment Solutions,Communities,Planning & Growth,Development Control,1161,Agency Staff,21/02/22,Employee Related Expenditure,135468,Communities,Planning
6875,Henry Riley Llp,Capital Expenditure,Transformation & Innovation,Bingham Leisure Hub,314,Legal & Professional Services,18/02/22,Supplies & Services,137103,Capital Expenditure,Neighbourhoods
6875,Henry Riley Llp,Capital Expenditure,Transformation & Innovation,Bingham Leisure Hub,314,Legal & Professional Services,17/03/22,Supplies & Services,138049,Capital Expenditure,Neighbourhoods
6875,Newark And Sherwood D C,Finance & Corporate Services,Revenues & Benefits,Nndr,1038,Legal & Professional Services,16/02/22,Supplies & Services,136380,Finance & Corporate Services,Finance
6859,Streetwise Environmental Ltd           1,Communities,Community Development,Environmental Promotion,1590,Contractors-Supplies & Servs,01/03/22,Supplies & Services,137875,Communities,Public Protection
6750,T H Smith (Sharnford) Ltd,Capital Expenditure,Communities,Rcp Enhancements,504,Contractors-Third Party,22/03/22,Third Party Payments,138364,Capital Expenditure,Economic Growth
6735,Via East Midlands Ltd,Capital Expenditure,Communities,Alford Rd Play Area,641,Legal & Professional Services,17/03/22,Supplies & Services,136828,Capital Expenditure,Corporate Services
6617.13,Tunstall Response Ltd,Neighbourhoods,Strategic Housing,Home Alarms,1137,Other Services,08/02/22,Supplies & Services,136800,Neighbourhoods,Public Protection
6589.2,Gee Tee Building Services,Capital Expenditure,Neighbourhoods,Disabled Facilities Grant,332,Grants,16/02/22,Supplies & Services,137345,Capital Expenditure,Public Protection
6578,Commercial Surface Solutions Ltd,Capital Expenditure,Communities,Covid Memorial Garden,642,Contractors-Third Party,29/03/22,Third Party Payments,139019,Capital Expenditure,Corporate Services
6525.5,Carlton Design & Fabrication,Capital Expenditure,Neighbourhoods,Disabled Facilities Grant,332,Grants,15/03/22,Supplies & Services,138359,Capital Expenditure,Public Protection
6516,New Dec Interiors Ltd,Capital Expenditure,Neighbourhoods,Disabled Facilities Grant,332,Grants,15/03/22,Supplies & Services,138356,Capital Expenditure,Public Protection
6500,Rics,Communities,Planning & Growth,Development Control,1161,Legal & Professional Services,25/02/22,Supplies & Services,136344,Communities,Planning
6144.91,Ridge And Partners Llp,Capital Expenditure,Transformation & Innovation,The Crematorium,684,Legal & Professional Services,08/02/22,Supplies & Services,137098,Capital Expenditure,Neighbourhoods
6129.12,Royal Mail Group Ltd,Transformation,Bsu,Central Mail,4871,Postages,07/03/22,Supplies & Services,138050,Transformation,Chief Executive Department 
6099.93,Lodge Tyre Co.Ltd,Neighbourhoods,Waste & Fleet Management,Waste Collection,8403,Tyres,05/01/22,Transport Related Expenditure,135693,Neighbourhoods,Neighbourhoods
6000,Cote Restaurant Group Ltd,Assets,Current Assets,Covid19 Funding (Drs),6219,Omicron Grants,29/03/22,Omicron Grants,139031,Assets,Finance
6000,Lady Bay Inns Ltd (Poppy & Pint),Assets,Current Assets,Covid19 Funding (Drs),6219,Omicron Grants,27/01/22,Omicron Grants,136468,Assets,Finance
6000,Londonsilk Hotel Ltd,Assets,Current Assets,Covid19 Funding (Drs),6219,Omicron Grants,25/02/22,Omicron Grants,137729,Assets,Finance
6000,Marstons Plc,Assets,Current Assets,Covid19 Funding (Drs),6219,Omicron Grants,17/03/22,Omicron Grants,138721,Assets,Finance
6000,Moleface Pub Company Llp T/A Larwood And Voce,Assets,Current Assets,Covid19 Funding (Drs),6219,Omicron Grants,02/02/22,Omicron Grants,136893,Assets,Finance
6000,New World Trading Company (Uk) Limited,Assets,Current Assets,Covid19 Funding (Drs),6219,Omicron Grants,17/03/22,Omicron Grants,138724,Assets,Finance
6000,The Cat & Wickets Pub Company Ltd,Assets,Current Assets,Covid19 Funding (Drs),6219,Omicron Grants,27/01/22,Omicron Grants,136486,Assets,Finance
6000,The Plough Inn,Assets,Current Assets,Covid19 Funding (Drs),6219,Omicron Grants,08/02/22,Omicron Grants,137123,Assets,Finance
6000,The Radcliffe Arms Ltd,Assets,Current Assets,Covid19 Funding (Drs),6219,Omicron Grants,27/01/22,Omicron Grants,136485,Assets,Finance
6000,The Ruddy Good Pub Company Ltd,Assets,Current Assets,Covid19 Funding (Drs),6219,Omicron Grants,02/02/22,Omicron Grants,136890,Assets,Finance
6000,Tynemill Ltd (Stratford Haven),Assets,Current Assets,Covid19 Funding (Drs),6219,Omicron Grants,27/01/22,Omicron Grants,136469,Assets,Finance
5970,Cromwell Polythene Limited,Neighbourhoods,Waste & Fleet Management,Waste Collection,8403,Other Equipment/Materials,27/01/22,Supplies & Services,135874,Neighbourhoods,Neighbourhoods
5964.31,Open Reach,Capital Expenditure,Transformation & Innovation,The Crematorium,684,Contractors-Third Party,02/03/22,Third Party Payments,137854,Capital Expenditure,Neighbourhoods
5949.19,Severn Trent Water,Neighbourhoods,Waste & Fleet Management,Tanker Services,1948,Waste Disposal,16/02/22,Supplies & Services,136816,Neighbourhoods,Neighbourhoods
5796,Brian Cooper Architect,Capital Expenditure,Neighbourhoods,Disabled Facilities Grant,332,Grants,23/02/22,Supplies & Services,137401,Capital Expenditure,Public Protection
5785.29,Toot Hill School,Neighbourhoods,Leisure Contracts & Car Parks,Leisure Management Contract,1795,Gas,15/03/22,Premises Related Expenditure,138300,Neighbourhoods,Neighbourhoods
5785,Gee Tee Building Services,Capital Expenditure,Neighbourhoods,Discretionary Top-Ups Dfgs,333,Grants,23/02/22,Supplies & Services,137346,Capital Expenditure,Public Protection
5737.96,Bt Telephone Payment Centre,Finance & Corporate Services,Ict,It Rechargeable Costs,4722,Maintenance Contracts - S&S,25/01/22,Supplies & Services,135926,Finance & Corporate Services,Corporate Services
5724,Centerprise International,Finance & Corporate Services,Ict,It Rechargeable Costs,4722,Cyber Security,18/02/22,Supplies & Services,137102,Finance & Corporate Services,Corporate Services
5711.99,Severn Trent Water,Neighbourhoods,Waste & Fleet Management,Tanker Services,1948,Waste Disposal,16/02/22,Supplies & Services,136815,Neighbourhoods,Neighbourhoods
5621,Benchmark Design Ltd,Capital Expenditure,Communities,Covid Memorial Garden,642,Other Equipment/Materials,29/03/22,Supplies & Services,138311,Capital Expenditure,Corporate Services
5580.58,Carlton Design & Fabrication,Capital Expenditure,Neighbourhoods,Disabled Facilities Grant,332,Grants,04/01/22,Supplies & Services,135555,Capital Expenditure,Public Protection
5558.38,A.T Alarms,Capital Expenditure,Transformation & Innovation,U10 Moorbridge Security 21-22,208,Contractors-Third Party,11/03/22,Third Party Payments,136359,Capital Expenditure,Economic Growth
5490,Sherwood Contractors Ltd,Capital Expenditure,Neighbourhoods,Disabled Facilities Grant,332,Grants,07/03/22,Supplies & Services,137917,Capital Expenditure,Public Protection
5428,Geldards Llp,Capital Income,Capital Receipts,Disposal Of The Old Depot Site,9044,Legal & Professional Services,07/03/22,Supplies & Services,138099,Capital Income,Neighbourhoods
5334.97,Ideagen Gael Ltd,Finance & Corporate Services,Ict,It Rechargeable Costs,4722,Maintenance Contracts - S&S,29/03/22,Supplies & Services,136763,Finance & Corporate Services,Corporate Services
5230,Tunstall Response Ltd,Neighbourhoods,Strategic Housing,Home Alarms,1137,Other Equipment/Materials,11/03/22,Supplies & Services,137929,Neighbourhoods,Public Protection
5208.28,Via East Midlands Ltd,Capital Expenditure,Transformation & Innovation,Bingham Leisure Hub,314,Contractors-Third Party,25/01/22,Third Party Payments,136355,Capital Expenditure,Neighbourhoods
5107,Trent Valley Plumbing & Build,Capital Expenditure,Neighbourhoods,Disabled Facilities Grant,332,Grants,07/03/22,Supplies & Services,137999,Capital Expenditure,Public Protection
5076.47,The Saville Group Ltd,Capital Expenditure,Finance & Corporate Services,Ict Replacement Programme,592,Computer Hardware,05/01/22,Supplies & Services,135368,Capital Expenditure,Obsolete
5053,Trent Valley Plumbing & Build,Capital Expenditure,Neighbourhoods,Disabled Facilities Grant,332,Grants,25/01/22,Supplies & Services,136241,Capital Expenditure,Public Protection
5010,Newark And Sherwood D C,Finance & Corporate Services,Revenues & Benefits,Nndr,1038,Legal & Professional Services,29/03/22,Supplies & Services,138641,Finance & Corporate Services,Finance
5000,Nottingham Festival Of Science & Curiosty,Communities,Community Development,Community Development,1581,Grants,29/03/22,Supplies & Services,138629,Communities,Neighbourhoods
5000,Nottinghamshire County Council,Communities,Planning Policy,Development Plans,1232,Legal & Professional Services,27/01/22,Supplies & Services,136441,Communities,Neighbourhoods
5000,Rural Retailers Ltd,Transformation,Economic Regeneration,High Streets Safely,1881,Legal & Professional Services,02/03/22,Supplies & Services,138024,Transformation,Economic Growth
4974.75,Savills Uk Limited,Neighbourhoods,Leisure Contracts & Car Parks,Edwalton Golf Courses,1400,Legal & Professional Services,07/03/22,Supplies & Services,137863,Neighbourhoods,Neighbourhoods
4964.59,Severn Trent Water,Neighbourhoods,Waste & Fleet Management,Tanker Services,1948,Waste Disposal,07/03/22,Supplies & Services,138020,Neighbourhoods,Neighbourhoods
4898,Sherwood Contractors Ltd,Capital Expenditure,Neighbourhoods,Disabled Facilities Grant,332,Grants,07/01/22,Supplies & Services,135684,Capital Expenditure,Public Protection
4860,Trent Valley Plumbing & Build,Capital Expenditure,Neighbourhoods,Disabled Facilities Grant,332,Grants,18/01/22,Supplies & Services,135945,Capital Expenditure,Public Protection
4860,Via East Midlands Ltd,Communities,Planning Policy,Land Charges,1033,Other Services,18/02/22,Supplies & Services,136376,Communities,Planning
4798,Zurich Municipal,Finance & Corporate Services,Financial Services,Liability Claims,4921,Excesses Paid,19/01/22,Transfers Expenditure,135940,Finance & Corporate Services,Finance
4783.43,The National Leaflet Company,Finance & Corporate Services,"Performance, Repn & Comms",Performance And Reputation,4710,Other Services,29/03/22,Supplies & Services,138976,Finance & Corporate Services,Corporate Services
4750,University Of Birmingham,Communities,Planning & Growth,Development Control,1161,Training Expenses,07/01/22,Employee Related Expenditure,135448,Communities,Planning
4749,Stannah Lift Services Ltd,Capital Expenditure,Neighbourhoods,Disabled Facilities Grant,332,Grants,08/03/22,Supplies & Services,138179,Capital Expenditure,Public Protection
4745,Sherwood Contractors Ltd,Capital Expenditure,Neighbourhoods,Disabled Facilities Grant,332,Grants,25/01/22,Supplies & Services,136225,Capital Expenditure,Public Protection
4745,Sherwood Contractors Ltd,Capital Expenditure,Neighbourhoods,Disabled Facilities Grant,332,Grants,29/03/22,Supplies & Services,138871,Capital Expenditure,Public Protection
4702.36,Trent Valley Plumbing & Build,Capital Expenditure,Neighbourhoods,Disabled Facilities Grant,332,Grants,22/03/22,Supplies & Services,138637,Capital Expenditure,Public Protection
4701.53,Frontline Recruitment Ltd,Neighbourhoods,Waste & Fleet Management,Waste Collection,8403,Agency Staff,16/02/22,Employee Related Expenditure,136650,Neighbourhoods,Neighbourhoods
4690,Lg Futures,Finance & Corporate Services,Financial Services,Financial Services,4705,Legal & Professional Services,15/03/22,Supplies & Services,138368,Finance & Corporate Services,Finance
4663.27,The South Wolds Academy And Sixth Form,Neighbourhoods,Leisure Contracts & Car Parks,Leisure Management Contract,1795,Gas,01/03/22,Premises Related Expenditure,136786,Neighbourhoods,Neighbourhoods
4600,G2 Recruitment Solutions,Communities,Planning & Growth,Development Control,1161,Agency Staff,29/03/22,Employee Related Expenditure,138372,Communities,Planning
4536,Ep Consulting Building Services Engineers,Capital Expenditure,Communities,Rcp Enhancements,504,Contractors-Third Party,25/01/22,Third Party Payments,135752,Capital Expenditure,Economic Growth
4536,Ep Consulting Building Services Engineers,Communities,Community Development,West Bridgford Town Centre,1875,Feasibility Study,05/01/22,Supplies & Services,134708,Communities,Neighbourhoods
4487.53,Dcr Electrical Ltd,Capital Expenditure,Communities,Warm Homes On Prescription,337,Grants,21/01/22,Supplies & Services,136261,Capital Expenditure,Neighbourhoods
4455,Teleware Plc,Capital Expenditure,Finance & Corporate Services,Technical Infrastructure,603,Computer Hardware,16/02/22,Supplies & Services,137067,Capital Expenditure,Corporate Services
4450,A R Signs Ltd,Finance & Corporate Services,"Performance, Repn & Comms",Performance And Reputation,4710,External Printing,17/03/22,Supplies & Services,138057,Finance & Corporate Services,Corporate Services
4400,Lakeside Flood Solutions,Assets,Current Assets,Defra Flood Support Scheme,5227,Grants,17/03/22,Supplies & Services,138564,Assets,Neighbourhoods
4374.99,Toot Hill School,Neighbourhoods,Leisure Contracts & Car Parks,Leisure Management Contract,1795,Gas,16/02/22,Premises Related Expenditure,135688,Neighbourhoods,Neighbourhoods
4366,Vivid Resourcing (G2v Recruitment Group Ltd),Communities,Planning & Growth,Development Control,1161,Agency Staff,17/03/22,Employee Related Expenditure,138305,Communities,Planning
4354.21,East Leake Parish Council,Liabilities,Long Term Liabilities,Mtg Hse Cl El David Wilson,6748,Balance Sheet Exp In The Year,07/03/22,Balance Sheet Exp In The Year,137868,Liabilities,Finance
4336.57,Severn Trent Water,Neighbourhoods,Waste & Fleet Management,Tanker Services,1948,Waste Disposal,17/03/22,Supplies & Services,138505,Neighbourhoods,Neighbourhoods
4290.4,Frontline Recruitment Ltd,Neighbourhoods,Waste & Fleet Management,Waste Collection,8403,Agency Staff,18/02/22,Employee Related Expenditure,137053,Neighbourhoods,Neighbourhoods
4288.47,Edf Energy,Communities,Community Development,Gresham,8950,Electricity,29/03/22,Premises Related Expenditure,138501,Communities,Neighbourhoods
4219.44,Dcr Electrical Ltd,Capital Expenditure,Communities,Warm Homes On Prescription,337,Grants,21/01/22,Supplies & Services,136262,Capital Expenditure,Neighbourhoods
4038.55,Frontline Recruitment Ltd,Neighbourhoods,Waste & Fleet Management,Waste Collection,8403,Agency Staff,07/03/22,Employee Related Expenditure,137812,Neighbourhoods,Neighbourhoods
4025,G2 Recruitment Solutions,Communities,Planning & Growth,Development Control,1161,Agency Staff,16/02/22,Employee Related Expenditure,135962,Communities,Planning
4000,Ashmores Restaurant,Assets,Current Assets,Covid19 Funding (Drs),6219,Omicron Grants,25/02/22,Omicron Grants,137750,Assets,Finance
4000,Baresca Tapas Limited,Assets,Current Assets,Covid19 Funding (Drs),6219,Omicron Grants,18/02/22,Omicron Grants,137527,Assets,Finance
4000,Birchover Residences Limited,Assets,Current Assets,Covid19 Funding (Drs),6219,Omicron Grants,25/02/22,Omicron Grants,137720,Assets,Finance
4000,Blotts Country Club,Assets,Current Assets,Covid19 Funding (Drs),6219,Omicron Grants,08/02/22,Omicron Grants,137164,Assets,Finance
4000,Bpwb T/A The Black Pearl,Assets,Current Assets,Covid19 Funding (Drs),6219,Omicron Grants,18/02/22,Omicron Grants,137497,Assets,Finance
4000,Central Helicopters Limited,Assets,Current Assets,Covid19 Funding (Drs),6219,Omicron Grants,17/03/22,Omicron Grants,138720,Assets,Finance
4000,Charde & Co Ltd,Assets,Current Assets,Covid19 Funding (Drs),6219,Omicron Grants,25/02/22,Omicron Grants,137723,Assets,Finance
4000,Chubby Pub Company Ltd,Assets,Current Assets,Covid19 Funding (Drs),6219,Omicron Grants,18/02/22,Omicron Grants,137515,Assets,Finance
4000,Coffee Lovers Bingham Limited,Assets,Current Assets,Covid19 Funding (Drs),6219,Omicron Grants,08/02/22,Omicron Grants,137131,Assets,Finance
4000,Copper Wb,Assets,Current Assets,Covid19 Funding (Drs),6219,Omicron Grants,18/02/22,Omicron Grants,137517,Assets,Finance
4000,Cotgrave Welfare Scheme,Assets,Current Assets,Covid19 Funding (Drs),6219,Omicron Grants,17/03/22,Omicron Grants,138732,Assets,Finance
4000,Crystal Lillies,Assets,Current Assets,Covid19 Funding (Drs),6219,Omicron Grants,18/02/22,Omicron Grants,137525,Assets,Finance
4000,Cuzina Limited,Assets,Current Assets,Covid19 Funding (Drs),6219,Omicron Grants,08/02/22,Omicron Grants,137128,Assets,Finance
4000,Delhi Nights,Assets,Current Assets,Covid19 Funding (Drs),6219,Omicron Grants,18/02/22,Omicron Grants,137532,Assets,Finance
4000,Distinctive Inns Ltd,Assets,Current Assets,Covid19 Funding (Drs),6219,Omicron Grants,02/02/22,Omicron Grants,136840,Assets,Finance
4000,Fordes Coffee And Sandwich Bar,Assets,Current Assets,Covid19 Funding (Drs),6219,Omicron Grants,29/03/22,Omicron Grants,139023,Assets,Finance
4000,Frances Russell,Assets,Current Assets,Covid19 Funding (Drs),6219,Omicron Grants,25/02/22,Omicron Grants,137748,Assets,Finance
4000,Gb Costock Ltd,Assets,Current Assets,Covid19 Funding (Drs),6219,Omicron Grants,25/02/22,Omicron Grants,137733,Assets,Finance
4000,Good Table And Cheer Limited,Assets,Current Assets,Covid19 Funding (Drs),6219,Omicron Grants,18/02/22,Omicron Grants,137528,Assets,Finance
4000,Good Table And Cheer Limited,Assets,Current Assets,Covid19 Funding (Drs),6219,Omicron Grants,18/02/22,Omicron Grants,137529,Assets,Finance
4000,Gotham Memorial Hall & Rec Ground Trust,Assets,Current Assets,Covid19 Funding (Drs),6219,Omicron Grants,08/02/22,Omicron Grants,137160,Assets,Finance
4000,Great Northern Bars Ltd,Assets,Current Assets,Covid19 Funding (Drs),6219,Omicron Grants,27/01/22,Omicron Grants,136503,Assets,Finance
4000,Great Northern Refinery Ltd,Assets,Current Assets,Covid19 Funding (Drs),6219,Omicron Grants,02/02/22,Omicron Grants,136859,Assets,Finance
4000,Hillary And Scott Limited,Assets,Current Assets,Covid19 Funding (Drs),6219,Omicron Grants,18/02/22,Omicron Grants,137519,Assets,Finance
4000,J&M Pub Co Ltd,Assets,Current Assets,Covid19 Funding (Drs),6219,Omicron Grants,02/02/22,Omicron Grants,136845,Assets,Finance
4000,Kalex Cafe Ltd,Assets,Current Assets,Covid19 Funding (Drs),6219,Omicron Grants,02/02/22,Omicron Grants,136870,Assets,Finance
4000,Keyworth Enterprises Ltd,Assets,Current Assets,Covid19 Funding (Drs),6219,Omicron Grants,27/01/22,Omicron Grants,136517,Assets,Finance
4000,Korma Sutra,Assets,Current Assets,Covid19 Funding (Drs),6219,Omicron Grants,29/03/22,Omicron Grants,139026,Assets,Finance
4000,Ktmrestaurant Ltd T/A Mewar Haveli,Assets,Current Assets,Covid19 Funding (Drs),6219,Omicron Grants,17/03/22,Omicron Grants,138725,Assets,Finance
4000,Lees & Wilson Holdings Limited,Assets,Current Assets,Covid19 Funding (Drs),6219,Omicron Grants,25/02/22,Omicron Grants,137716,Assets,Finance
4000,Lexo Yellow Limited,Assets,Current Assets,Covid19 Funding (Drs),6219,Omicron Grants,02/02/22,Omicron Grants,136858,Assets,Finance
4000,Lovely Local Ltd,Assets,Current Assets,Covid19 Funding (Drs),6219,Omicron Grants,27/01/22,Omicron Grants,136461,Assets,Finance
4000,Manor Farm Park & Woodlands,Assets,Current Assets,Covid19 Funding (Drs),6219,Omicron Grants,18/02/22,Omicron Grants,137498,Assets,Finance
4000,Mermaid One Ltd,Assets,Current Assets,Covid19 Funding (Drs),6219,Omicron Grants,02/02/22,Omicron Grants,136851,Assets,Finance
4000,Paklands Holdings Ltd,Assets,Current Assets,Covid19 Funding (Drs),6219,Omicron Grants,18/02/22,Omicron Grants,137500,Assets,Finance
4000,Paradise Hospitality Services Limited,Assets,Current Assets,Covid19 Funding (Drs),6219,Omicron Grants,17/03/22,Omicron Grants,138730,Assets,Finance
4000,Phillip David Maxwell,Assets,Current Assets,Covid19 Funding (Drs),6219,Omicron Grants,02/02/22,Omicron Grants,136854,Assets,Finance
4000,Please Select Title,Assets,Current Assets,Covid19 Funding (Drs),6219,Omicron Grants,25/02/22,Omicron Grants,137732,Assets,Finance
4000,Silex Pubs Ltd T/A Victoria Tavern,Assets,Current Assets,Covid19 Funding (Drs),6219,Omicron Grants,27/01/22,Omicron Grants,136493,Assets,Finance
4000,Spencers Of Car Colston Ltd,Assets,Current Assets,Covid19 Funding (Drs),6219,Omicron Grants,08/02/22,Omicron Grants,137126,Assets,Finance
4000,Strezza,Assets,Current Assets,Covid19 Funding (Drs),6219,Omicron Grants,18/02/22,Omicron Grants,137485,Assets,Finance
4000,The Atrium Bar And Kitchen Ltd,Assets,Current Assets,Covid19 Funding (Drs),6219,Omicron Grants,08/02/22,Omicron Grants,137163,Assets,Finance
4000,The Beer Consortium Ltd T/A Horse & Plough,Assets,Current Assets,Covid19 Funding (Drs),6219,Omicron Grants,27/01/22,Omicron Grants,136466,Assets,Finance
4000,The Martins Arms,Assets,Current Assets,Covid19 Funding (Drs),6219,Omicron Grants,08/02/22,Omicron Grants,137149,Assets,Finance
4000,The Plough By Secret Pub Company,Assets,Current Assets,Covid19 Funding (Drs),6219,Omicron Grants,27/01/22,Omicron Grants,136487,Assets,Finance
4000,The Pub People Company Ltd,Assets,Current Assets,Covid19 Funding (Drs),6219,Omicron Grants,27/01/22,Omicron Grants,136479,Assets,Finance
4000,The Pub People Company Ltd,Assets,Current Assets,Covid19 Funding (Drs),6219,Omicron Grants,27/01/22,Omicron Grants,136480,Assets,Finance
4000,The Pub People Company Ltd,Assets,Current Assets,Covid19 Funding (Drs),6219,Omicron Grants,27/01/22,Omicron Grants,136481,Assets,Finance
4000,The Real Salon,Assets,Current Assets,Covid19 Funding (Drs),6219,Omicron Grants,18/02/22,Omicron Grants,137542,Assets,Finance
4000,The Unicorns Head Ltd,Assets,Current Assets,Covid19 Funding (Drs),6219,Omicron Grants,25/02/22,Omicron Grants,137721,Assets,Finance
4000,Thorntons Holt Camping Park,Assets,Current Assets,Covid19 Funding (Drs),6219,Omicron Grants,08/02/22,Omicron Grants,137132,Assets,Finance
4000,Three Crowns,Assets,Current Assets,Covid19 Funding (Drs),6219,Omicron Grants,02/02/22,Omicron Grants,136857,Assets,Finance
4000,Tipsy Trex Ltd,Assets,Current Assets,Covid19 Funding (Drs),6219,Omicron Grants,27/01/22,Omicron Grants,136484,Assets,Finance
4000,Town & Country Inns Ltd,Assets,Current Assets,Covid19 Funding (Drs),6219,Omicron Grants,27/01/22,Omicron Grants,136515,Assets,Finance
4000,Tuk Tuk Indian Street Food,Assets,Current Assets,Covid19 Funding (Drs),6219,Omicron Grants,22/03/22,Omicron Grants,138816,Assets,Finance
4000,Uchi,Assets,Current Assets,Covid19 Funding (Drs),6219,Omicron Grants,18/02/22,Omicron Grants,137505,Assets,Finance
4000,Venezia Catering Ltd,Assets,Current Assets,Covid19 Funding (Drs),6219,Omicron Grants,18/02/22,Omicron Grants,137488,Assets,Finance
4000,Waterside Bar Kitchen,Assets,Current Assets,Covid19 Funding (Drs),6219,Omicron Grants,18/02/22,Omicron Grants,137518,Assets,Finance
4000,White Horse Ruddington,Assets,Current Assets,Covid19 Funding (Drs),6219,Omicron Grants,27/01/22,Omicron Grants,136475,Assets,Finance
4000,Wysall Plough Limited,Assets,Current Assets,Covid19 Funding (Drs),6219,Omicron Grants,08/02/22,Omicron Grants,137157,Assets,Finance
4000,Yb Central Ltd,Assets,Current Assets,Covid19 Funding (Drs),6219,Omicron Grants,18/02/22,Omicron Grants,137504,Assets,Finance
3860,Cipfa Business Limited,Finance & Corporate Services,Financial Services,Financial Services,4705,Professional Subscriptions,08/03/22,Employee Related Expenditure,137841,Finance & Corporate Services,Finance
3825,Advanced Business Solutions,Capital Expenditure,Finance & Corporate Services,Applications/Apps,605,Software,05/01/22,Supplies & Services,135357,Capital Expenditure,Corporate Services
3811.7,Streetwise Environmental Ltd           1,Transformation,Property Services,Open Spaces & Footpaths,1290,Responsive Works - Buildings,08/02/22,Premises Related Expenditure,136533,Transformation,Economic Growth
3718.48,Toot Hill School,Neighbourhoods,Leisure Contracts & Car Parks,Leisure Management Contract,1795,Gas,11/01/22,Premises Related Expenditure,134342,Neighbourhoods,Neighbourhoods
3664.8,New Dec Interiors Ltd,Capital Expenditure,Neighbourhoods,Disabled Facilities Grant,332,Grants,23/02/22,Supplies & Services,137348,Capital Expenditure,Public Protection
3664.64,Frontline Recruitment Ltd,Neighbourhoods,Waste & Fleet Management,Waste Collection,8403,Agency Staff,07/03/22,Employee Related Expenditure,137842,Neighbourhoods,Neighbourhoods
3593.85,Dolphin Mobility East Mids Ltd,Capital Expenditure,Neighbourhoods,Disabled Facilities Grant,332,Grants,29/03/22,Supplies & Services,138870,Capital Expenditure,Public Protection
3587.46,Streetwise Environmental Ltd           1,Transformation,Property Services,Open Spaces & Footpaths,1290,Responsive Works - Buildings,08/02/22,Premises Related Expenditure,136535,Transformation,Economic Growth
3582.13,Daisy Corporate Services Trading Limited,Finance & Corporate Services,Ict,It Rechargeable Costs,4722,Maintenance Contracts - S&S,01/02/22,Supplies & Services,133329,Finance & Corporate Services,Corporate Services
3556.4,Reach Publishing Services Limited,Finance & Corporate Services,Revenues & Benefits,Council Tax,1045,Legal & Professional Services,29/03/22,Supplies & Services,138941,Finance & Corporate Services,Finance
3536,Apw (Nottm) Ltd,Liabilities,Current Liabilities,Creditors Control Account,5101,Sub Contractors Sums Deducted,19/01/22,Sub Contractors Sums Deducted,136106,Liabilities,Finance
3500,Shamshad Walker Marketing,Transformation,Economic Regeneration,High Streets Safely,1881,Legal & Professional Services,29/03/22,Supplies & Services,138868,Transformation,Economic Growth
3495,Parkwood Leisure Ltd,Capital Expenditure,Transformation & Innovation,Bingham Leisure Hub,314,Other Equipment/Materials,08/03/22,Supplies & Services,137939,Capital Expenditure,Neighbourhoods
3400,Verisec Ltd,Finance & Corporate Services,Ict,It Rechargeable Costs,4722,Cyber Security,11/03/22,Supplies & Services,137871,Finance & Corporate Services,Corporate Services
3296.5,Elite Blinds Nottingham Ltd,Capital Expenditure,Communities,Gamston Community Hall Enhance,317,Contractors-Third Party,17/03/22,Third Party Payments,137278,Capital Expenditure,Neighbourhoods
3287.5,Midland Regional Printers Ltd,Finance & Corporate Services,"Performance, Repn & Comms",Performance And Reputation,4710,External Printing,08/02/22,Supplies & Services,136260,Finance & Corporate Services,Corporate Services
3262.5,Hutton & Rostron Environmental,Capital Expenditure,Transformation & Innovation,Bingham Market Place Imps,379,Contractors-Third Party,07/03/22,Third Party Payments,137886,Capital Expenditure,Economic Growth
3231.27,Frontline Recruitment Ltd,Neighbourhoods,Waste & Fleet Management,Waste Collection,8403,Agency Staff,07/03/22,Employee Related Expenditure,137807,Neighbourhoods,Neighbourhoods
3225,A R Signs Ltd,Finance & Corporate Services,"Performance, Repn & Comms",Performance And Reputation,4710,External Printing,16/02/22,Supplies & Services,136646,Finance & Corporate Services,Corporate Services
3197.62,The South Wolds Academy And Sixth Form,Neighbourhoods,Leisure Contracts & Car Parks,Leisure Management Contract,1795,Electricity,15/03/22,Premises Related Expenditure,138148,Neighbourhoods,Neighbourhoods
3100,Cipfa Business Limited,Finance & Corporate Services,Financial Services,Financial Services,4705,Professional Subscriptions,08/03/22,Employee Related Expenditure,137896,Finance & Corporate Services,Finance
3100,Fisher Hargreaves Proctor,Transformation,Property Services,Castle Donington,1863,Legal & Professional Services,05/01/22,Supplies & Services,135372,Transformation,Economic Growth
3057.06,Frontline Recruitment Ltd,Neighbourhoods,Waste & Fleet Management,Waste Collection,8403,Agency Staff,29/03/22,Employee Related Expenditure,138925,Neighbourhoods,Neighbourhoods
3025,Excel Sports Coaching,Communities,Community Development,Holiday Activities & Food Prog,1594,Projects & Activities,27/01/22,Supplies & Services,136443,Communities,Neighbourhoods
3000,Cotgrave Welfare Scheme & Institute,Assets,Current Assets,Covid19 Funding (Drs),6219,Addnl Restrictions Grant,07/01/22,Addnl Restrictions Grant,135770,Assets,Finance
3000,Cucamara T/A Wellingtons Cafe,Assets,Current Assets,Covid19 Funding (Drs),6219,Addnl Restrictions Grant,25/02/22,Addnl Restrictions Grant,137747,Assets,Finance
3000,Marsh Ltd,Finance & Corporate Services,Financial Services,Main Premiums,4920,Miscellaneous Ins Premiums,29/03/22,Supplies & Services,138903,Finance & Corporate Services,Finance
3000,Nottinghamshire County Cricket Club,Assets,Current Assets,Covid19 Funding (Drs),6219,Addnl Restrictions Grant,18/02/22,Addnl Restrictions Grant,137531,Assets,Finance
3000,The Moleface Pub Company Llp,Assets,Current Assets,Covid19 Funding (Drs),6219,Addnl Restrictions Grant,07/01/22,Addnl Restrictions Grant,135766,Assets,Finance
3000,Truman Aviation Ltd,Assets,Current Assets,Covid19 Funding (Drs),6219,Addnl Restrictions Grant,08/02/22,Addnl Restrictions Grant,137122,Assets,Finance
3000,White Horse,Assets,Current Assets,Covid19 Funding (Drs),6219,Addnl Restrictions Grant,07/01/22,Addnl Restrictions Grant,135764,Assets,Finance
2971.6,Acs Systems Uk Ltd T/A Acs Office Solutions,Capital Expenditure,Finance & Corporate Services,Technical Infrastructure,603,Computer Hardware,25/02/22,Supplies & Services,134531,Capital Expenditure,Corporate Services
2928.98,Frontline Recruitment Ltd,Neighbourhoods,Waste & Fleet Management,Waste Collection,8403,Agency Staff,29/03/22,Employee Related Expenditure,138854,Neighbourhoods,Neighbourhoods
2901.6,Streetwise Environmental Ltd           1,Communities,Community Development,Environmental Promotion,1590,Contractors-Supplies & Servs,21/01/22,Supplies & Services,135879,Communities,Public Protection
2850,Roger Hart,Transformation,Property Services,Open Spaces & Footpaths,1290,Responsive Works - Buildings,27/01/22,Premises Related Expenditure,136526,Transformation,Economic Growth
2765,Thomasons,Communities,Planning & Growth,Development Control,1161,Legal & Professional Services,07/03/22,Supplies & Services,136807,Communities,Planning
2752,Thorn Baker Ltd,Neighbourhoods,Waste & Fleet Management,Waste Collection,8403,Agency Staff,16/02/22,Employee Related Expenditure,136808,Neighbourhoods,Neighbourhoods
2750,West Bridgford Wire,Communities,Community Development,Arts & Events,1550,Projects & Activities,11/03/22,Supplies & Services,138366,Communities,Neighbourhoods
2667,1st/2nd West Bridgford Scout Group,Assets,Current Assets,Covid19 Funding (Drs),6219,Omicron Grants,02/02/22,Omicron Grants,136864,Assets,Finance
2667,1st Lady Bay Scouts Group,Assets,Current Assets,Covid19 Funding (Drs),6219,Omicron Grants,25/02/22,Omicron Grants,137731,Assets,Finance
2667,1st Meadow Covert Scout Group,Assets,Current Assets,Covid19 Funding (Drs),6219,Omicron Grants,25/02/22,Omicron Grants,137722,Assets,Finance
2667,1st Ruddington Scout Group,Assets,Current Assets,Covid19 Funding (Drs),6219,Omicron Grants,18/02/22,Omicron Grants,137530,Assets,Finance
2667,1st Tollerton Scout Group,Assets,Current Assets,Covid19 Funding (Drs),6219,Omicron Grants,25/02/22,Omicron Grants,137728,Assets,Finance
2667,2nd Beeston Sea Scouts,Assets,Current Assets,Covid19 Funding (Drs),6219,Omicron Grants,18/02/22,Omicron Grants,137492,Assets,Finance
2667,2nd East Leake Scout Group,Assets,Current Assets,Covid19 Funding (Drs),6219,Omicron Grants,18/02/22,Omicron Grants,137501,Assets,Finance
2667,7 Spice,Assets,Current Assets,Covid19 Funding (Drs),6219,Omicron Grants,08/02/22,Omicron Grants,137155,Assets,Finance
2667,Aggra Spice Ltd,Assets,Current Assets,Covid19 Funding (Drs),6219,Omicron Grants,02/02/22,Omicron Grants,136892,Assets,Finance
2667,Alices Tea Shop,Assets,Current Assets,Covid19 Funding (Drs),6219,Omicron Grants,27/01/22,Omicron Grants,136464,Assets,Finance
2667,Arrowmaker Pubs Ltd T/A The Chestnut,Assets,Current Assets,Covid19 Funding (Drs),6219,Omicron Grants,18/02/22,Omicron Grants,137522,Assets,Finance
2667,Aziz Khan,Assets,Current Assets,Covid19 Funding (Drs),6219,Omicron Grants,18/02/22,Omicron Grants,137523,Assets,Finance
2667,Bombay Bridgford,Assets,Current Assets,Covid19 Funding (Drs),6219,Omicron Grants,08/02/22,Omicron Grants,137168,Assets,Finance
2667,Bread And Butterflies Ltd,Assets,Current Assets,Covid19 Funding (Drs),6219,Omicron Grants,27/01/22,Omicron Grants,136492,Assets,Finance
2667,Bryer One Limited T/A Bryer'S,Assets,Current Assets,Covid19 Funding (Drs),6219,Omicron Grants,27/01/22,Omicron Grants,136501,Assets,Finance
2667,Butler'S Coffee House,Assets,Current Assets,Covid19 Funding (Drs),6219,Omicron Grants,02/02/22,Omicron Grants,136867,Assets,Finance
2667,Cafe Olive,Assets,Current Assets,Covid19 Funding (Drs),6219,Omicron Grants,08/02/22,Omicron Grants,137171,Assets,Finance
2667,Cafe Piano (Radcliffe On Trent) Ltd,Assets,Current Assets,Covid19 Funding (Drs),6219,Omicron Grants,08/02/22,Omicron Grants,137153,Assets,Finance
2667,Caffe Velo Verde Ltd,Assets,Current Assets,Covid19 Funding (Drs),6219,Omicron Grants,08/02/22,Omicron Grants,137154,Assets,Finance
2667,Chefs Cafe,Assets,Current Assets,Covid19 Funding (Drs),6219,Omicron Grants,25/02/22,Omicron Grants,137735,Assets,Finance
2667,Chocks Away Cafe,Assets,Current Assets,Covid19 Funding (Drs),6219,Omicron Grants,18/02/22,Omicron Grants,137496,Assets,Finance
2667,Christopher Andrew Grice,Assets,Current Assets,Covid19 Funding (Drs),6219,Omicron Grants,02/02/22,Omicron Grants,136869,Assets,Finance
2667,Christopher Mould,Assets,Current Assets,Covid19 Funding (Drs),6219,Omicron Grants,08/02/22,Omicron Grants,137129,Assets,Finance
2667,Coach Gap Cafe,Assets,Current Assets,Covid19 Funding (Drs),6219,Omicron Grants,27/01/22,Omicron Grants,136473,Assets,Finance
2667,Colston Bassett Village Hall,Assets,Current Assets,Covid19 Funding (Drs),6219,Omicron Grants,25/02/22,Omicron Grants,137738,Assets,Finance
2667,Create! West Bridgford Ltd,Assets,Current Assets,Covid19 Funding (Drs),6219,Omicron Grants,02/02/22,Omicron Grants,136868,Assets,Finance
2667,Curry2night Express T/A Curry 2 Night,Assets,Current Assets,Covid19 Funding (Drs),6219,Omicron Grants,29/03/22,Omicron Grants,139030,Assets,Finance
2667,Debbie Bryan Design Limited,Assets,Current Assets,Covid19 Funding (Drs),6219,Omicron Grants,29/03/22,Omicron Grants,139027,Assets,Finance
2667,Dhaka Delhi Ltd,Assets,Current Assets,Covid19 Funding (Drs),6219,Omicron Grants,27/01/22,Omicron Grants,136504,Assets,Finance
2667,East Bridgford Village Hall,Assets,Current Assets,Covid19 Funding (Drs),6219,Omicron Grants,08/02/22,Omicron Grants,137146,Assets,Finance
2667,Edwalton Coffee And Snack Bar,Assets,Current Assets,Covid19 Funding (Drs),6219,Omicron Grants,27/01/22,Omicron Grants,136476,Assets,Finance
2667,Evag��s Grill,Assets,Current Assets,Covid19 Funding (Drs),6219,Omicron Grants,08/02/22,Omicron Grants,137170,Assets,Finance
2667,Fosse Paddock Studios,Assets,Current Assets,Covid19 Funding (Drs),6219,Omicron Grants,17/03/22,Omicron Grants,138731,Assets,Finance
2667,Frangos Chicken Grill House,Assets,Current Assets,Covid19 Funding (Drs),6219,Omicron Grants,25/02/22,Omicron Grants,137726,Assets,Finance
2667,Gino'S Ristorante Ltd,Assets,Current Assets,Covid19 Funding (Drs),6219,Omicron Grants,02/02/22,Omicron Grants,136887,Assets,Finance
2667,Globalscale Ltd,Assets,Current Assets,Covid19 Funding (Drs),6219,Omicron Grants,02/02/22,Omicron Grants,136878,Assets,Finance
2667,Gourmet Coffee Bar & Kitchen Ltd,Assets,Current Assets,Covid19 Funding (Drs),6219,Omicron Grants,02/02/22,Omicron Grants,136846,Assets,Finance
2667,Grannies Ltd,Assets,Current Assets,Covid19 Funding (Drs),6219,Omicron Grants,25/02/22,Omicron Grants,137719,Assets,Finance
2667,Heat Restaurant,Assets,Current Assets,Covid19 Funding (Drs),6219,Omicron Grants,27/01/22,Omicron Grants,136460,Assets,Finance
2667,Heavenly Beauty By Harriet Ltd,Assets,Current Assets,Covid19 Funding (Drs),6219,Omicron Grants,02/02/22,Omicron Grants,136894,Assets,Finance
2667,Hickling Village Hall,Assets,Current Assets,Covid19 Funding (Drs),6219,Omicron Grants,08/02/22,Omicron Grants,137150,Assets,Finance
2667,Hinchley Leisure Ltd,Assets,Current Assets,Covid19 Funding (Drs),6219,Omicron Grants,27/01/22,Omicron Grants,136496,Assets,Finance
2667,Ideal Beauty Products,Assets,Current Assets,Covid19 Funding (Drs),6219,Omicron Grants,08/02/22,Omicron Grants,137127,Assets,Finance
2667,Indiannights,Assets,Current Assets,Covid19 Funding (Drs),6219,Omicron Grants,27/01/22,Omicron Grants,136521,Assets,Finance
2667,Individual,Assets,Current Assets,Covid19 Funding (Drs),6219,Omicron Grants,18/02/22,Omicron Grants,137536,Assets,Finance
2667,Individual,Assets,Current Assets,Covid19 Funding (Drs),6219,Omicron Grants,18/02/22,Omicron Grants,137537,Assets,Finance
2667,J And D Barbers Ltd,Assets,Current Assets,Covid19 Funding (Drs),6219,Omicron Grants,18/02/22,Omicron Grants,137506,Assets,Finance
2667,Jane Elizabeth Price,Assets,Current Assets,Covid19 Funding (Drs),6219,Omicron Grants,25/02/22,Omicron Grants,137751,Assets,Finance
2667,Jansons Leisure & Fishery Ltd,Assets,Current Assets,Covid19 Funding (Drs),6219,Omicron Grants,27/01/22,Omicron Grants,136478,Assets,Finance
2667,Kinoulton Village Hall,Assets,Current Assets,Covid19 Funding (Drs),6219,Omicron Grants,18/02/22,Omicron Grants,137540,Assets,Finance
2667,Langar Near The Hall,Assets,Current Assets,Covid19 Funding (Drs),6219,Omicron Grants,17/03/22,Omicron Grants,138713,Assets,Finance
2667,La Storia Limited,Assets,Current Assets,Covid19 Funding (Drs),6219,Omicron Grants,02/02/22,Omicron Grants,136884,Assets,Finance
2667,Lbch,Assets,Current Assets,Covid19 Funding (Drs),6219,Omicron Grants,08/02/22,Omicron Grants,137125,Assets,Finance
2667,Little Wayside,Assets,Current Assets,Covid19 Funding (Drs),6219,Omicron Grants,18/02/22,Omicron Grants,137503,Assets,Finance
2667,Manor Born Ltd T/A Compton Harbour,Assets,Current Assets,Covid19 Funding (Drs),6219,Omicron Grants,02/02/22,Omicron Grants,136839,Assets,Finance
2667,Morton+�g�g��s Cafe And Deli Ltd,Assets,Current Assets,Covid19 Funding (Drs),6219,Omicron Grants,27/01/22,Omicron Grants,136491,Assets,Finance
2667,Mousy Brown Ltd,Assets,Current Assets,Covid19 Funding (Drs),6219,Omicron Grants,02/02/22,Omicron Grants,136871,Assets,Finance
2667,Mrs B Patel T/A The Red Heart,Assets,Current Assets,Covid19 Funding (Drs),6219,Omicron Grants,25/02/22,Omicron Grants,137745,Assets,Finance
2667,Naturescape Limited,Assets,Current Assets,Covid19 Funding (Drs),6219,Omicron Grants,25/02/22,Omicron Grants,137739,Assets,Finance
2667,Nical Ltd,Assets,Current Assets,Covid19 Funding (Drs),6219,Omicron Grants,08/02/22,Omicron Grants,137124,Assets,Finance
2667,Normanton On Soar Jubilee Field,Assets,Current Assets,Covid19 Funding (Drs),6219,Omicron Grants,25/02/22,Omicron Grants,137717,Assets,Finance
2667,Oddhouse Farm Partnership,Assets,Current Assets,Covid19 Funding (Drs),6219,Omicron Grants,29/03/22,Omicron Grants,139028,Assets,Finance
2667,Okende Coffee Ltd,Assets,Current Assets,Covid19 Funding (Drs),6219,Omicron Grants,08/02/22,Omicron Grants,137158,Assets,Finance
2667,Overgrown Acres Ltd,Assets,Current Assets,Covid19 Funding (Drs),6219,Omicron Grants,17/03/22,Omicron Grants,138727,Assets,Finance
2667,P C Morley & Son,Assets,Current Assets,Covid19 Funding (Drs),6219,Omicron Grants,29/03/22,Omicron Grants,139021,Assets,Finance
2667,P C Morley & Son,Assets,Current Assets,Covid19 Funding (Drs),6219,Omicron Grants,29/03/22,Omicron Grants,139022,Assets,Finance
2667,Penelope Jones,Assets,Current Assets,Covid19 Funding (Drs),6219,Omicron Grants,02/02/22,Omicron Grants,136877,Assets,Finance
2667,Pento Limited,Assets,Current Assets,Covid19 Funding (Drs),6219,Omicron Grants,18/02/22,Omicron Grants,137499,Assets,Finance
2667,Philo Mills Ltd,Assets,Current Assets,Covid19 Funding (Drs),6219,Omicron Grants,27/01/22,Omicron Grants,136505,Assets,Finance
2667,Pizza Pizza Plus Ltd,Assets,Current Assets,Covid19 Funding (Drs),6219,Omicron Grants,17/03/22,Omicron Grants,138733,Assets,Finance
2667,Raw Pubs Ltd,Assets,Current Assets,Covid19 Funding (Drs),6219,Omicron Grants,18/02/22,Omicron Grants,137520,Assets,Finance
2667,Rbl (Radcliffe On Trent & District) Club Ltd,Assets,Current Assets,Covid19 Funding (Drs),6219,Omicron Grants,27/01/22,Omicron Grants,136465,Assets,Finance
2667,Red+�g�g��s Sports Bar Ltd,Assets,Current Assets,Covid19 Funding (Drs),6219,Omicron Grants,27/01/22,Omicron Grants,136516,Assets,Finance
2667,Rempstone Village Hall,Assets,Current Assets,Covid19 Funding (Drs),6219,Omicron Grants,27/01/22,Omicron Grants,136497,Assets,Finance
2667,Rempstone White Lion Limited,Assets,Current Assets,Covid19 Funding (Drs),6219,Omicron Grants,02/02/22,Omicron Grants,136855,Assets,Finance
2667,Rj Management Ltd T/A Yard Of Ale,Assets,Current Assets,Covid19 Funding (Drs),6219,Omicron Grants,02/02/22,Omicron Grants,136841,Assets,Finance
2667,Rose & May Ltd.,Assets,Current Assets,Covid19 Funding (Drs),6219,Omicron Grants,27/01/22,Omicron Grants,136510,Assets,Finance
2667,Ruddington Framework Knitters Museum Ltd,Assets,Current Assets,Covid19 Funding (Drs),6219,Omicron Grants,18/02/22,Omicron Grants,137502,Assets,Finance
2667,Scoozi Ltd,Assets,Current Assets,Covid19 Funding (Drs),6219,Omicron Grants,18/02/22,Omicron Grants,137539,Assets,Finance
2667,Sk&S Limited,Assets,Current Assets,Covid19 Funding (Drs),6219,Omicron Grants,27/01/22,Omicron Grants,136509,Assets,Finance
2667,Sophiag��s Coffee Shop/Catherine Turner,Assets,Current Assets,Covid19 Funding (Drs),6219,Omicron Grants,08/02/22,Omicron Grants,137137,Assets,Finance
2667,Sophie Laura Beauty,Assets,Current Assets,Covid19 Funding (Drs),6219,Omicron Grants,27/01/22,Omicron Grants,136494,Assets,Finance
2667,Stephanie Cole,Assets,Current Assets,Covid19 Funding (Drs),6219,Omicron Grants,18/02/22,Omicron Grants,137491,Assets,Finance
2667,Sutton Bonington Village Hall Committee,Assets,Current Assets,Covid19 Funding (Drs),6219,Omicron Grants,27/01/22,Omicron Grants,136512,Assets,Finance
2667,Taste,Assets,Current Assets,Covid19 Funding (Drs),6219,Omicron Grants,27/01/22,Omicron Grants,136459,Assets,Finance
2667,The Air Hostess,Assets,Current Assets,Covid19 Funding (Drs),6219,Omicron Grants,17/03/22,Omicron Grants,138726,Assets,Finance
2667,The Anchor Inn Sutton Bonington,Assets,Current Assets,Covid19 Funding (Drs),6219,Omicron Grants,27/01/22,Omicron Grants,136506,Assets,Finance
2667,The Blossom Tree Keyworth Ltd,Assets,Current Assets,Covid19 Funding (Drs),6219,Omicron Grants,02/02/22,Omicron Grants,136842,Assets,Finance
2667,The Boot & Shoe Ltd,Assets,Current Assets,Covid19 Funding (Drs),6219,Omicron Grants,27/01/22,Omicron Grants,136477,Assets,Finance
2667,The Bottle Top,Assets,Current Assets,Covid19 Funding (Drs),6219,Omicron Grants,02/02/22,Omicron Grants,136835,Assets,Finance
2667,The Durham Ox,Assets,Current Assets,Covid19 Funding (Drs),6219,Omicron Grants,18/02/22,Omicron Grants,137513,Assets,Finance
2667,The Guide Association Nottinghamshire,Assets,Current Assets,Covid19 Funding (Drs),6219,Omicron Grants,27/01/22,Omicron Grants,136498,Assets,Finance
2667,The Humble Cat Ltd,Assets,Current Assets,Covid19 Funding (Drs),6219,Omicron Grants,02/02/22,Omicron Grants,136837,Assets,Finance
2667,The Lodge At Ruddington,Assets,Current Assets,Covid19 Funding (Drs),6219,Omicron Grants,08/02/22,Omicron Grants,137173,Assets,Finance
2667,The Pamper Room,Assets,Current Assets,Covid19 Funding (Drs),6219,Omicron Grants,18/02/22,Omicron Grants,137490,Assets,Finance
2667,The Royal Oak,Assets,Current Assets,Covid19 Funding (Drs),6219,Omicron Grants,18/02/22,Omicron Grants,137495,Assets,Finance
2667,The Ruddy Good Cocktail Company Ltd,Assets,Current Assets,Covid19 Funding (Drs),6219,Omicron Grants,02/02/22,Omicron Grants,136888,Assets,Finance
2667,The Ruddy Good Pub Company Bingham Ltd,Assets,Current Assets,Covid19 Funding (Drs),6219,Omicron Grants,02/02/22,Omicron Grants,136889,Assets,Finance
2667,The Star Inn,Assets,Current Assets,Covid19 Funding (Drs),6219,Omicron Grants,08/02/22,Omicron Grants,137130,Assets,Finance
2667,The Sun Inn,Assets,Current Assets,Covid19 Funding (Drs),6219,Omicron Grants,17/03/22,Omicron Grants,138708,Assets,Finance
2667,The Woodpecker Snug,Assets,Current Assets,Covid19 Funding (Drs),6219,Omicron Grants,08/02/22,Omicron Grants,137167,Assets,Finance
2667,Thrumpton Village Hall And Social Club,Assets,Current Assets,Covid19 Funding (Drs),6219,Omicron Grants,25/02/22,Omicron Grants,137749,Assets,Finance
2667,Tiffin Teahouse Ltd,Assets,Current Assets,Covid19 Funding (Drs),6219,Omicron Grants,27/01/22,Omicron Grants,136519,Assets,Finance
2667,Welcome-Aboard,Assets,Current Assets,Covid19 Funding (Drs),6219,Omicron Grants,18/02/22,Omicron Grants,137538,Assets,Finance
2667,West Bridgford Beauty Ltd,Assets,Current Assets,Covid19 Funding (Drs),6219,Omicron Grants,18/02/22,Omicron Grants,137541,Assets,Finance
2667,West Bridgford Conservative Club,Assets,Current Assets,Covid19 Funding (Drs),6219,Omicron Grants,27/01/22,Omicron Grants,136514,Assets,Finance
2667,Yaadgaar Radcliffe Ltd,Assets,Current Assets,Covid19 Funding (Drs),6219,Omicron Grants,27/01/22,Omicron Grants,136490,Assets,Finance
2640,Waste Investigations Support Ltd,Neighbourhoods,Environmental Health,Public Health,1127,Legal & Professional Services,07/01/22,Supplies & Services,135729,Neighbourhoods,Public Protection
2636.69,Acs Systems Uk Ltd T/A Acs Office Solutions,Finance & Corporate Services,Ict,It Rechargeable Costs,4722,Software,25/02/22,Supplies & Services,137093,Finance & Corporate Services,Corporate Services
2630.65,Jne Security Ltd,Neighbourhoods,Environmental Health,Community Safety,1598,Projects & Activities,19/01/22,Supplies & Services,135964,Neighbourhoods,Public Protection
2625,Boston Seeds Ltd,Communities,Community Development,Environmental Promotion,1590,Contractors-Supplies & Servs,17/03/22,Supplies & Services,138455,Communities,Public Protection
2501.3,Frontline Recruitment Ltd,Neighbourhoods,Waste & Fleet Management,Waste Collection,8403,Agency Staff,11/01/22,Employee Related Expenditure,135622,Neighbourhoods,Neighbourhoods
2500,Ade Regeneration,Neighbourhoods,Strategic Housing,Housing Strategy,1146,Legal & Professional Services,05/01/22,Supplies & Services,135365,Neighbourhoods,Public Protection
2500,Civica Uk Ltd,Capital Expenditure,Finance & Corporate Services,Applications/Apps,605,Software,08/03/22,Supplies & Services,137403,Capital Expenditure,Corporate Services
2500,Idox Software Limited,Communities,Planning & Growth,Development Control,1161,Projects & Activities,28/01/22,Supplies & Services,135958,Communities,Planning
2478.15,Frontline Recruitment Ltd,Neighbourhoods,Waste & Fleet Management,Waste Collection,8403,Agency Staff,21/01/22,Employee Related Expenditure,136030,Neighbourhoods,Neighbourhoods
2450.4,Zip Heaters (Uk) Ltd,Transformation,Property Services,Arena Civic Centre,4718,Service Maintenance Contracts,07/01/22,Premises Related Expenditure,135554,Transformation,Economic Growth
2440,Aac Air Conditioning Ltd,Transformation,Property Services,Arena Civic Centre,4718,Planned Maintenance Recharge,07/03/22,Supplies & Services,137859,Transformation,Economic Growth
2380,T&S Heating Ltd,Capital Expenditure,Neighbourhoods,Disabled Facilities Grant,332,Grants,15/03/22,Supplies & Services,138357,Capital Expenditure,Public Protection
2356.57,Drax,Transformation,Property Services,Castle Donington,1863,Electricity,15/03/22,Premises Related Expenditure,138355,Transformation,Economic Growth
2340,Iken Business Ltd,Finance & Corporate Services,Ict,It Rechargeable Costs,4722,Maintenance Contracts - S&S,18/02/22,Supplies & Services,137309,Finance & Corporate Services,Corporate Services
2315.5,Streetwise Environmental Ltd           1,Communities,Community Development,Environmental Promotion,1590,Contractors-Supplies & Servs,01/03/22,Supplies & Services,137874,Communities,Public Protection
2302.88,T&S Heating Ltd,Capital Expenditure,Neighbourhoods,Disabled Facilities Grant,332,Grants,18/01/22,Supplies & Services,135872,Capital Expenditure,Public Protection
2300,G2 Recruitment Solutions,Communities,Planning & Growth,Development Control,1161,Agency Staff,16/02/22,Employee Related Expenditure,136988,Communities,Planning
2300,G2 Recruitment Solutions,Communities,Planning & Growth,Development Control,1161,Agency Staff,29/03/22,Employee Related Expenditure,137462,Communities,Planning
2300,G2 Recruitment Solutions,Communities,Planning & Growth,Development Control,1161,Agency Staff,29/03/22,Employee Related Expenditure,138445,Communities,Planning
2289.38,William Saunders,Capital Expenditure,Transformation & Innovation,Bingham Leisure Hub,314,Contractors-Third Party,22/03/22,Third Party Payments,138457,Capital Expenditure,Neighbourhoods
2272,Thorn Baker Ltd,Neighbourhoods,Waste & Fleet Management,Waste Collection,8403,Agency Staff,18/02/22,Employee Related Expenditure,137352,Neighbourhoods,Neighbourhoods
2250,Park Avenue,Communities,Planning & Growth,Development Control,1161,Agency Staff,14/01/22,Employee Related Expenditure,135444,Communities,Planning
2250,Park Avenue,Communities,Planning & Growth,Development Control,1161,Agency Staff,25/01/22,Employee Related Expenditure,136185,Communities,Planning
2250,Park Avenue,Communities,Planning & Growth,Development Control,1161,Agency Staff,28/01/22,Employee Related Expenditure,136445,Communities,Planning
2250,Park Avenue,Communities,Planning & Growth,Development Control,1161,Agency Staff,04/02/22,Employee Related Expenditure,136524,Communities,Planning
2250,Park Avenue,Communities,Planning & Growth,Development Control,1161,Agency Staff,04/02/22,Employee Related Expenditure,136525,Communities,Planning
2250,Park Avenue,Communities,Planning & Growth,Development Control,1161,Agency Staff,18/02/22,Employee Related Expenditure,137335,Communities,Planning
2250,Park Avenue,Communities,Planning & Growth,Development Control,1161,Agency Staff,07/03/22,Employee Related Expenditure,137894,Communities,Planning
2250,Park Avenue,Communities,Planning & Growth,Development Control,1161,Agency Staff,07/03/22,Employee Related Expenditure,137993,Communities,Planning
2250,Park Avenue,Communities,Planning & Growth,Development Control,1161,Agency Staff,07/03/22,Employee Related Expenditure,138078,Communities,Planning
2250,Park Avenue,Communities,Planning & Growth,Development Control,1161,Agency Staff,15/03/22,Employee Related Expenditure,138377,Communities,Planning
2250,Park Avenue,Communities,Planning & Growth,Development Control,1161,Agency Staff,17/03/22,Employee Related Expenditure,138646,Communities,Planning
2242.17,Streetwise Environmental Ltd           1,Transformation,Property Services,Open Spaces & Footpaths,1290,Responsive Works - Buildings,08/02/22,Premises Related Expenditure,136536,Transformation,Economic Growth
2232.05,Frontline Recruitment Ltd,Neighbourhoods,Waste & Fleet Management,Waste Collection,8403,Agency Staff,11/01/22,Employee Related Expenditure,135624,Neighbourhoods,Neighbourhoods
2230,Direct Trade Bags,Transformation,Economic Regeneration,High Streets Safely,1881,Legal & Professional Services,11/03/22,Supplies & Services,138414,Transformation,Economic Growth
2224,Parkin Contractors Ltd,Transformation,Property Services,Arena Civic Centre,4718,Contractors-Third Party,02/02/22,Third Party Payments,136086,Transformation,Economic Growth
2200,Aaron Services Ltd,Capital Expenditure,Communities,Warm Homes On Prescription,337,Grants,27/01/22,Supplies & Services,136141,Capital Expenditure,Neighbourhoods
2200,Aaron Services Ltd,Capital Expenditure,Communities,Warm Homes On Prescription,337,Grants,18/02/22,Supplies & Services,136290,Capital Expenditure,Neighbourhoods
2183,Vivid Resourcing (G2v Recruitment Group Ltd),Communities,Planning & Growth,Development Control,1161,Agency Staff,14/01/22,Employee Related Expenditure,135465,Communities,Planning
2183,Vivid Resourcing (G2v Recruitment Group Ltd),Communities,Planning & Growth,Development Control,1161,Agency Staff,14/01/22,Employee Related Expenditure,135626,Communities,Planning
2183,Vivid Resourcing (G2v Recruitment Group Ltd),Communities,Planning & Growth,Development Control,1161,Agency Staff,04/02/22,Employee Related Expenditure,136529,Communities,Planning
2183,Vivid Resourcing (G2v Recruitment Group Ltd),Communities,Planning & Growth,Development Control,1161,Agency Staff,08/02/22,Employee Related Expenditure,136984,Communities,Planning
2183,Vivid Resourcing (G2v Recruitment Group Ltd),Communities,Planning & Growth,Development Control,1161,Agency Staff,21/02/22,Employee Related Expenditure,137325,Communities,Planning
2183,Vivid Resourcing (G2v Recruitment Group Ltd),Communities,Planning & Growth,Development Control,1161,Agency Staff,01/03/22,Employee Related Expenditure,137464,Communities,Planning
2183,Vivid Resourcing (G2v Recruitment Group Ltd),Communities,Planning & Growth,Development Control,1161,Agency Staff,15/03/22,Employee Related Expenditure,138423,Communities,Planning
2183,Vivid Resourcing (G2v Recruitment Group Ltd),Communities,Planning & Growth,Development Control,1161,Agency Staff,22/03/22,Employee Related Expenditure,138701,Communities,Planning
2156.25,G2 Recruitment Solutions,Communities,Planning & Growth,Development Control,1161,Agency Staff,16/02/22,Employee Related Expenditure,136232,Communities,Planning
2133.06,Streetwise Environmental Ltd           1,Neighbourhoods,Waste & Fleet Management,Streetwise Contract,8301,Contractors-Third Party,02/03/22,Third Party Payments,138071,Neighbourhoods,Neighbourhoods
2115,Nottingham City Council,Communities,Community Development,Environmental Promotion,1590,Subscriptions,21/01/22,Supplies & Services,136006,Communities,Public Protection
2100,Euromunicipal Ltd,Neighbourhoods,Waste & Fleet Management,Waste Collection,8403,Hire Of Transport/Plant,07/01/22,Transport Related Expenditure,135739,Neighbourhoods,Neighbourhoods
2086.46,Nottinghamshire County Council,Neighbourhoods,Leisure Contracts & Car Parks,Leisure Management Contract,1795,Grounds Maintenance,07/03/22,Premises Related Expenditure,137911,Neighbourhoods,Neighbourhoods
2084.78,Edf Energy,Neighbourhoods,Leisure Contracts & Car Parks,Car Parks,1900,Electricity,01/03/22,Premises Related Expenditure,137084,Neighbourhoods,Neighbourhoods
2084.41,Frontline Recruitment Ltd,Neighbourhoods,Waste & Fleet Management,Waste Collection,8403,Agency Staff,11/01/22,Employee Related Expenditure,135783,Neighbourhoods,Neighbourhoods
2065,Dryden Consultancy Ltd,Finance & Corporate Services,Financial Services,Financial Services,4705,Legal & Professional Services,17/03/22,Supplies & Services,138551,Finance & Corporate Services,Finance
2063.75,William Saunders,Capital Expenditure,Transformation & Innovation,Bingham Leisure Hub,314,Contractors-Third Party,07/03/22,Third Party Payments,137331,Capital Expenditure,Neighbourhoods
2030,Dryden Consultancy Ltd,Finance & Corporate Services,Financial Services,Financial Services,4705,Legal & Professional Services,17/03/22,Supplies & Services,138559,Finance & Corporate Services,Finance
2000,Chequers Lnn,Assets,Current Assets,Covid19 Funding (Drs),6219,Addnl Restrictions Grant,07/01/22,Addnl Restrictions Grant,135771,Assets,Finance
2000,J J M Planning Ltd,Communities,Planning & Growth,Development Control,1161,Legal & Professional Services,14/01/22,Supplies & Services,135417,Communities,Planning
2000,Via East Midlands Ltd,Capital Expenditure,Communities,Boundary Rd Cycle Track S.E.,670,Legal & Professional Services,17/03/22,Supplies & Services,136826,Capital Expenditure,Neighbourhoods
1982.5,Greenhalgh Kerr,Finance & Corporate Services,Revenues & Benefits,Council Tax,1045,Legal & Professional Services,16/02/22,Supplies & Services,136012,Finance & Corporate Services,Finance
1961.25,Reach Publishing Services Limited,Communities,Planning & Growth,Development Control,1161,Advertising,19/01/22,Supplies & Services,136184,Communities,Planning
1945,South Notts Fabrications Ltd,Capital Expenditure,Transformation & Innovation,U10 Moorbridge Security 21-22,208,Contractors-Third Party,29/03/22,Third Party Payments,138387,Capital Expenditure,Economic Growth
1944,Ep Consulting Building Services Engineers,Communities,Community Development,West Bridgford Town Centre,1875,Feasibility Study,18/02/22,Supplies & Services,136991,Communities,Neighbourhoods
1900,Nufuture Recruitment Ltd,Finance & Corporate Services,"Performance, Repn & Comms",Performance And Reputation,4710,Other Miscellaneous Expenses,17/03/22,Supplies & Services,138638,Finance & Corporate Services,Corporate Services
1893.35,Frontline Recruitment Ltd,Neighbourhoods,Waste & Fleet Management,Waste Collection,8403,Agency Staff,16/02/22,Employee Related Expenditure,136348,Neighbourhoods,Neighbourhoods
1873.5,Tunstall Response Ltd,Neighbourhoods,Strategic Housing,Home Alarms,1137,Other Equipment/Materials,11/01/22,Supplies & Services,135637,Neighbourhoods,Public Protection
1873.5,Tunstall Response Ltd,Neighbourhoods,Strategic Housing,Home Alarms,1137,Other Equipment/Materials,29/03/22,Supplies & Services,138402,Neighbourhoods,Public Protection
1868.32,Royal Mail Group Ltd,Assets,Current Assets,Police & Crime Comm Elections,7104,Postages,21/01/22,Supplies & Services,135865,Assets,Chief Executive Department 
1828.93,Sherwood Farms Ltd,Neighbourhoods,Waste & Fleet Management,Waste Collection,8403,Contractors-Supplies & Servs,01/03/22,Supplies & Services,137844,Neighbourhoods,Neighbourhoods
1800,Park Avenue,Communities,Planning & Growth,Development Control,1161,Agency Staff,04/02/22,Employee Related Expenditure,136812,Communities,Planning
1800,Streetwise Environmental Ltd           1,Transformation,Property Services,Open Spaces & Footpaths,1290,Responsive Works - Buildings,21/01/22,Premises Related Expenditure,135875,Transformation,Economic Growth
1792.8,Reach Publishing Services Limited,Communities,Planning & Growth,Development Control,1161,Advertising,05/01/22,Supplies & Services,135621,Communities,Planning
1787,Poly Advisory Limited,Capital Expenditure,Neighbourhoods,Arena Development,415,Contractors-Third Party,08/02/22,Third Party Payments,136798,Capital Expenditure,Economic Growth
1785,Access Doors Ltd,Transformation,Property Services,Arena Civic Centre,4718,Service Maintenance Contracts,15/03/22,Premises Related Expenditure,136757,Transformation,Economic Growth
1772.9,P.Waller (Decorators) Ltd,Capital Expenditure,Communities,Gamston Community Hall Enhance,317,Contractors-Supplies & Servs,17/03/22,Supplies & Services,137818,Capital Expenditure,Neighbourhoods
1765,Maltby & Company,Transformation,Property Services,Bridgford Hall,1883,Planned Maintenance Recharge,29/03/22,Supplies & Services,138378,Transformation,Economic Growth
1757.28,Reach Publishing Services Limited,Communities,Planning & Growth,Development Control,1161,Advertising,02/02/22,Supplies & Services,136809,Communities,Planning
1755,Telefonica Uk Limited,Communities,Planning & Growth,Development Control,1161,Other Miscellaneous Expenses,11/03/22,Supplies & Services,122612,Communities,Planning
1750,3spices Restaurant Limited,Assets,Current Assets,Covid19 Funding (Drs),6219,Addnl Restrictions Grant,02/02/22,Addnl Restrictions Grant,136843,Assets,Finance
1750,Beauty Temple (Nottingham) Limited,Assets,Current Assets,Covid19 Funding (Drs),6219,Addnl Restrictions Grant,27/01/22,Addnl Restrictions Grant,136502,Assets,Finance
1750,Elysian Parlour,Assets,Current Assets,Covid19 Funding (Drs),6219,Addnl Restrictions Grant,18/02/22,Addnl Restrictions Grant,137516,Assets,Finance
1750,Gracie B Ltd,Assets,Current Assets,Covid19 Funding (Drs),6219,Addnl Restrictions Grant,27/01/22,Addnl Restrictions Grant,136467,Assets,Finance
1750,Idapt Llp,Neighbourhoods,Environmental Health,Housing Standards,1129,Subscriptions,15/03/22,Supplies & Services,138393,Neighbourhoods,Public Protection
1750,Inflatable World Leisure Ltd,Assets,Current Assets,Covid19 Funding (Drs),6219,Addnl Restrictions Grant,27/01/22,Addnl Restrictions Grant,136482,Assets,Finance
1750,Joshua Tree Ltd,Assets,Current Assets,Covid19 Funding (Drs),6219,Addnl Restrictions Grant,27/01/22,Addnl Restrictions Grant,136489,Assets,Finance
1750,Saks Hair & Beauty - West Bridgford,Assets,Current Assets,Covid19 Funding (Drs),6219,Addnl Restrictions Grant,17/03/22,Addnl Restrictions Grant,138719,Assets,Finance
1750,Soothe Luxury Skincare & Spa,Assets,Current Assets,Covid19 Funding (Drs),6219,Addnl Restrictions Grant,02/02/22,Addnl Restrictions Grant,136838,Assets,Finance
1750,The Bridgford Salon Ltd,Assets,Current Assets,Covid19 Funding (Drs),6219,Addnl Restrictions Grant,08/02/22,Addnl Restrictions Grant,137165,Assets,Finance
1730.4,Reach Publishing Services Limited,Communities,Planning & Growth,Development Control,1161,Advertising,01/03/22,Supplies & Services,137838,Communities,Planning
1725,Bridgford Energy Consultants Ltd,Transformation,Property Services,Colliers Ph 2,1892,Legal & Professional Services,14/01/22,Supplies & Services,135451,Transformation,Economic Growth
1700,Maltby & Company,Transformation,Property Services,Open Spaces & Footpaths,1290,Responsive Works - Buildings,29/03/22,Premises Related Expenditure,138857,Transformation,Economic Growth
1679.06,Trustquay Solutions Uk Ltd,Finance & Corporate Services,Ict,It Rechargeable Costs,4722,Maintenance Contracts - S&S,17/03/22,Supplies & Services,137950,Finance & Corporate Services,Corporate Services
1675,Obam Lift Services Ltd,Capital Expenditure,Neighbourhoods,Disabled Facilities Grant,332,Grants,16/02/22,Supplies & Services,137106,Capital Expenditure,Public Protection
1644.8,A.T Alarms,Transformation,Property Services,Unit 10 Moorbridge,4788,Service Maintenance Contracts,08/02/22,Premises Related Expenditure,136454,Transformation,Economic Growth
1644.26,Royal Mail Group Ltd,Transformation,Bsu,Central Mail,4871,Postages,15/03/22,Supplies & Services,138135,Transformation,Chief Executive Department 
1620,Broxtowe Borough Council,Neighbourhoods,Leisure Contracts & Car Parks,Car Parks,1900,Other Equipment/Materials,29/03/22,Supplies & Services,138688,Neighbourhoods,Neighbourhoods
1615.95,Normanton Screenprint,Transformation,Economic Regeneration,High Streets Safely,1881,Legal & Professional Services,29/03/22,Supplies & Services,138996,Transformation,Economic Growth
1610,Bright Space Solutions Ltd,Transformation,Human Resources,Corporate Training,4893,Training Expenses,07/03/22,Employee Related Expenditure,137858,Transformation,Chief Executive Department 
1608,Attenborough Industrial Doors,Transformation,Property Services,Colliers Ph 2,1892,Service Maintenance Contracts,16/02/22,Premises Related Expenditure,137001,Transformation,Economic Growth
1600,Ridge And Partners Llp,Capital Expenditure,Transformation & Innovation,The Crematorium,684,Legal & Professional Services,27/01/22,Supplies & Services,136522,Capital Expenditure,Neighbourhoods
1598.4,Thorn Baker Ltd,Neighbourhoods,Waste & Fleet Management,Waste Collection,8403,Agency Staff,16/02/22,Employee Related Expenditure,136356,Neighbourhoods,Neighbourhoods
1598.4,Thorn Baker Ltd,Neighbourhoods,Waste & Fleet Management,Waste Collection,8403,Agency Staff,16/02/22,Employee Related Expenditure,136751,Neighbourhoods,Neighbourhoods
1598.4,Thorn Baker Ltd,Neighbourhoods,Waste & Fleet Management,Waste Collection,8403,Agency Staff,18/02/22,Employee Related Expenditure,137064,Neighbourhoods,Neighbourhoods
1596.15,Hiring Wizard,Communities,Planning & Growth,Development Control,1161,Employee Advertising,21/01/22,Employee Related Expenditure,135556,Communities,Planning
1596.15,Hiring Wizard,Communities,Planning Policy,Development Plans,1232,Employee Advertising,21/01/22,Employee Related Expenditure,135557,Communities,Neighbourhoods
1587.5,Sonovate Limited,Neighbourhoods,Environmental Health,Environmental Health Ha,4743,Agency Staff,11/03/22,Employee Related Expenditure,138436,Neighbourhoods,Public Protection
1580,Access Doors Ltd,Capital Expenditure,Communities,Extnal Door/Window Upgrades,505,Responsive Works - Buildings,15/03/22,Premises Related Expenditure,138056,Capital Expenditure,Economic Growth
1545,Lexis Nexis Uk,Finance & Corporate Services,Democratic Services,Borough Council Elections,1021,Books & Publications,11/03/22,Supplies & Services,137804,Finance & Corporate Services,Chief Executive Department 
1516.7,Reach Publishing Services Limited,Communities,Planning & Growth,Development Control,1161,Advertising,02/03/22,Supplies & Services,137995,Communities,Planning
1508.8,Vivid Resourcing (G2v Recruitment Group Ltd),Communities,Planning & Growth,Development Control,1161,Agency Staff,08/02/22,Employee Related Expenditure,136983,Communities,Planning
1500,Access Doors Ltd,Capital Expenditure,Transformation & Innovation,Manvers Bp Roller Shutters,328,Contractors-Third Party,29/03/22,Third Party Payments,137350,Capital Expenditure,Economic Growth
1500,Black Lion Trading Company (Zinc Bar Ltd),Assets,Current Assets,Covid19 Funding (Drs),6219,Addnl Restrictions Grant,07/01/22,Addnl Restrictions Grant,135762,Assets,Finance
1500,Coffee Lovers Bingham Limited,Assets,Current Assets,Covid19 Funding (Drs),6219,Addnl Restrictions Grant,07/01/22,Addnl Restrictions Grant,135763,Assets,Finance
1500,Copper Wb,Assets,Current Assets,Covid19 Funding (Drs),6219,Addnl Restrictions Grant,07/01/22,Addnl Restrictions Grant,135767,Assets,Finance
1500,Cucamara T/A Wellingtons Cafe,Assets,Current Assets,Covid19 Funding (Drs),6219,Addnl Restrictions Grant,29/03/22,Addnl Restrictions Grant,139144,Assets,Finance
1500,Freeth Cartwright Llp,Transformation,Human Resources,Corporate Training,4893,Training Expenses,23/02/22,Employee Related Expenditure,136134,Transformation,Chief Executive Department 
1500,Keyworth Enterprises Ltd,Assets,Current Assets,Covid19 Funding (Drs),6219,Addnl Restrictions Grant,07/01/22,Addnl Restrictions Grant,135768,Assets,Finance
1500,Mrs Amandeep Kaur Dosanjh,Assets,Current Assets,Covid19 Funding (Drs),6219,Addnl Restrictions Grant,29/03/22,Addnl Restrictions Grant,139032,Assets,Finance
1500,Nottinghamshire County Cricket Club,Assets,Current Assets,Covid19 Funding (Drs),6219,Addnl Restrictions Grant,29/03/22,Addnl Restrictions Grant,139126,Assets,Finance
1500,Truman Aviation Ltd,Assets,Current Assets,Covid19 Funding (Drs),6219,Addnl Restrictions Grant,29/03/22,Addnl Restrictions Grant,139085,Assets,Finance
1500,Vivid Resourcing (G2v Recruitment Group Ltd),Communities,Planning & Growth,Development Control,1161,Agency Staff,14/01/22,Employee Related Expenditure,135466,Communities,Planning
1500,Vivid Resourcing (G2v Recruitment Group Ltd),Communities,Planning & Growth,Development Control,1161,Agency Staff,04/02/22,Employee Related Expenditure,136528,Communities,Planning
1500,Vivid Resourcing (G2v Recruitment Group Ltd),Communities,Planning & Growth,Development Control,1161,Agency Staff,08/02/22,Employee Related Expenditure,136982,Communities,Planning
1500,Vivid Resourcing (G2v Recruitment Group Ltd),Communities,Planning & Growth,Development Control,1161,Agency Staff,01/03/22,Employee Related Expenditure,137465,Communities,Planning
1500,Vivid Resourcing (G2v Recruitment Group Ltd),Communities,Planning & Growth,Development Control,1161,Agency Staff,07/03/22,Employee Related Expenditure,138006,Communities,Planning
1500,Vivid Resourcing (G2v Recruitment Group Ltd),Communities,Planning & Growth,Development Control,1161,Agency Staff,15/03/22,Employee Related Expenditure,138307,Communities,Planning
1500,Vivid Resourcing (G2v Recruitment Group Ltd),Communities,Planning & Growth,Development Control,1161,Agency Staff,15/03/22,Employee Related Expenditure,138443,Communities,Planning
1500,Vivid Resourcing (G2v Recruitment Group Ltd),Communities,Planning & Growth,Development Control,1161,Agency Staff,22/03/22,Employee Related Expenditure,138700,Communities,Planning
1499.97,Via East Midlands Ltd,Capital Expenditure,Transformation & Innovation,Manvers Bp Enhancements,206,Contractors-Third Party,08/03/22,Third Party Payments,136442,Capital Expenditure,Economic Growth
1498.33,Dtw Tools & Machinery Ltd,Communities,Community Development,Rushcliffe Country Park,1375,Other Equipment/Materials,11/03/22,Supplies & Services,137900,Communities,Neighbourhoods
1494,Gedling Borough Council,Finance & Corporate Services,Democratic Services,Borough Council Elections,1021,Contractors-Supplies & Servs,28/01/22,Supplies & Services,136547,Finance & Corporate Services,Chief Executive Department 
1494,Gedling Borough Council,Finance & Corporate Services,Financial Services,Financial Services,4705,Contractors-Supplies & Servs,28/01/22,Supplies & Services,136547,Finance & Corporate Services,Finance
1491.45,Drax,Transformation,Property Services,Castle Donington,1863,Electricity,11/01/22,Premises Related Expenditure,135437,Transformation,Economic Growth
1489.45,Vivid Resourcing (G2v Recruitment Group Ltd),Communities,Planning & Growth,Development Control,1161,Agency Staff,01/03/22,Employee Related Expenditure,137466,Communities,Planning
1489,Vivid Resourcing (G2v Recruitment Group Ltd),Communities,Planning & Growth,Development Control,1161,Agency Staff,15/03/22,Employee Related Expenditure,138306,Communities,Planning
1483.6,Vivid Resourcing (G2v Recruitment Group Ltd),Communities,Planning & Growth,Development Control,1161,Agency Staff,22/03/22,Employee Related Expenditure,138698,Communities,Planning
1482,Arc Industrial Cladding & Roofing Ltd,Capital Expenditure,Neighbourhoods,Blc Enhancements,417,Contractors-Third Party,29/03/22,Third Party Payments,138182,Capital Expenditure,Economic Growth
1480,Vivid Resourcing (G2v Recruitment Group Ltd),Communities,Planning & Growth,Development Control,1161,Agency Staff,04/02/22,Employee Related Expenditure,136530,Communities,Planning
1480,Vivid Resourcing (G2v Recruitment Group Ltd),Communities,Planning & Growth,Development Control,1161,Agency Staff,08/02/22,Employee Related Expenditure,136227,Communities,Planning
1480,Vivid Resourcing (G2v Recruitment Group Ltd),Communities,Planning & Growth,Development Control,1161,Agency Staff,21/02/22,Employee Related Expenditure,137326,Communities,Planning
1480,Vivid Resourcing (G2v Recruitment Group Ltd),Communities,Planning & Growth,Development Control,1161,Agency Staff,07/03/22,Employee Related Expenditure,138004,Communities,Planning
1475,C A Wood T/A Orange Wood Design,Finance & Corporate Services,"Performance, Repn & Comms",Performance And Reputation,4710,Legal & Professional Services,15/03/22,Supplies & Services,138530,Finance & Corporate Services,Corporate Services
1471.24,Service Level Management Ltd,Transformation,Bsu,Central Mail,4871,Postages,18/02/22,Supplies & Services,137310,Transformation,Chief Executive Department 
1468.8,Vivid Resourcing (G2v Recruitment Group Ltd),Communities,Planning & Growth,Development Control,1161,Agency Staff,15/03/22,Employee Related Expenditure,138442,Communities,Planning
1466.25,William Saunders,Capital Expenditure,Transformation & Innovation,Bingham Leisure Hub,314,Contractors-Third Party,14/01/22,Third Party Payments,135959,Capital Expenditure,Neighbourhoods
1462.7,Maltby & Company,Transformation,Property Services,Land Holdings,1884,Planned Maintenance Recharge,01/03/22,Supplies & Services,136758,Transformation,Economic Growth
1440,Ludlow Hill Mot Centre,Neighbourhoods,Environmental Health,Hackney Carriage/Private Hire,1031,Contractors-Transport,29/03/22,Transport Related Expenditure,138922,Neighbourhoods,Public Protection
1430,Hillcrest Bed & Breakfast,Neighbourhoods,Strategic Housing,Homeless B&B,1110,Housing-Emergency Accommodn,18/01/22,Supplies & Services,136009,Neighbourhoods,Public Protection
1426.08,Service Level Management Ltd,Transformation,Bsu,Central Mail,4871,Postages,29/03/22,Supplies & Services,138059,Transformation,Chief Executive Department 
1425,Hillcrest Bed & Breakfast,Neighbourhoods,Strategic Housing,Homeless B&B,1110,Housing-Emergency Accommodn,07/03/22,Supplies & Services,138035,Neighbourhoods,Public Protection
1410.92,Service Level Management Ltd,Transformation,Bsu,Central Mail,4871,Postages,29/03/22,Supplies & Services,138048,Transformation,Chief Executive Department 
1410.9,Service Level Management Ltd,Transformation,Bsu,Central Mail,4871,Postages,29/03/22,Supplies & Services,138060,Transformation,Chief Executive Department 
1400,Streetwise Environmental Ltd           1,Neighbourhoods,Environmental Health,Work In Default,1066,Legal & Professional Services,21/01/22,Supplies & Services,135840,Neighbourhoods,Public Protection
1394.4,Service Level Management Ltd,Transformation,Bsu,Central Mail,4871,Postages,18/02/22,Supplies & Services,137353,Transformation,Chief Executive Department 
1393.19,Telefonica Uk Limited,Finance & Corporate Services,Ict,Telephones,4870,Mobiles,29/03/22,Supplies & Services,137925,Finance & Corporate Services,Corporate Services
1390,Inspire,Transformation,Customer Services,Customer Services,4807,Service Maintenance Contracts,11/03/22,Premises Related Expenditure,137953,Transformation,Corporate Services
1377.13,Streetwise Environmental Ltd           1,Communities,Community Development,Environmental Promotion,1590,Legal & Professional Services,21/01/22,Supplies & Services,135877,Communities,Public Protection
1370,Inspire,Transformation,Customer Services,Customer Services,4807,Service Maintenance Contracts,11/03/22,Premises Related Expenditure,137954,Transformation,Corporate Services
1355.73,Vodafone Limited,Finance & Corporate Services,Ict,It Rechargeable Costs,4722,Cyber Security,07/03/22,Supplies & Services,137811,Finance & Corporate Services,Corporate Services
1334.67,Live And Local Limited,Communities,Community Development,Arts & Events,1550,Projects & Activities,07/03/22,Supplies & Services,137342,Communities,Neighbourhoods
1334.66,Live And Local Limited,Communities,Community Development,Arts & Events,1550,Projects & Activities,08/03/22,Supplies & Services,137343,Communities,Neighbourhoods
1326,Ashfield District Council,Neighbourhoods,Strategic Housing,Homeless B&B,1110,Housing-Emergency Accommodn,29/03/22,Supplies & Services,138908,Neighbourhoods,Public Protection
1314.95,Edf Energy,Transformation,Property Services,The Point,1886,Electricity,14/01/22,Premises Related Expenditure,135937,Transformation,Economic Growth
1314,Daisy Corporate Services Trading Limited,Finance & Corporate Services,Ict,Telephones,4870,Mobiles,17/03/22,Supplies & Services,138165,Finance & Corporate Services,Corporate Services
1307.5,Reach Publishing Services Limited,Communities,Planning & Growth,Development Control,1161,Advertising,07/03/22,Supplies & Services,138138,Communities,Planning
1307.5,Reach Publishing Services Limited,Communities,Planning & Growth,Development Control,1161,Advertising,11/03/22,Supplies & Services,138400,Communities,Planning
1300,Streetwise Environmental Ltd           1,Communities,Community Development,Environmental Promotion,1590,Legal & Professional Services,07/01/22,Supplies & Services,132829,Communities,Public Protection
1299,Etac Limited,Capital Expenditure,Communities,West Park Sports Pav - Toilets,322,Grants,14/01/22,Supplies & Services,135740,Capital Expenditure,Economic Growth
1285,Air Movement & Fabrications Ltd,Capital Expenditure,Transformation & Innovation,Cotgrave Phase 2,387,Contractors-Third Party,25/01/22,Third Party Payments,135700,Capital Expenditure,Economic Growth
1270,1st Ruddington Scout Group,Finance & Corporate Services,Democratic Services,Members Services,1000,Grants,07/03/22,Supplies & Services,137949,Finance & Corporate Services,Corporate Services
1263,Direct Trade Bags,Transformation,Economic Regeneration,High Streets Safely,1881,Legal & Professional Services,29/03/22,Supplies & Services,138955,Transformation,Economic Growth
1262.5,Maltby & Company,Transformation,Economic Regeneration,High Streets Safely,1881,Legal & Professional Services,11/03/22,Supplies & Services,138379,Transformation,Economic Growth
1260,Cushman And Wakefield Debenham Tie Leung Ltd,Communities,Planning & Growth,Development Control,1161,Legal & Professional Services,15/03/22,Supplies & Services,138389,Communities,Planning
1260,Dtz,Communities,Planning & Growth,Development Control,1161,Legal & Professional Services,21/02/22,Supplies & Services,135837,Communities,Planning
1255.2,Reach Publishing Services Limited,Communities,Planning & Growth,Development Control,1161,Advertising,02/03/22,Supplies & Services,138096,Communities,Planning
1251.98,Drax,Transformation,Property Services,Castle Donington,1863,Electricity,21/01/22,Premises Related Expenditure,135978,Transformation,Economic Growth
1248,Mk Door Systems Ltd T/A Style Midlands,Transformation,Property Services,Arena Civic Centre,4718,Service Maintenance Contracts,04/01/22,Premises Related Expenditure,135353,Transformation,Economic Growth
1235,Hillcrest Bed & Breakfast,Neighbourhoods,Strategic Housing,Homeless B&B,1110,Housing-Emergency Accommodn,11/03/22,Supplies & Services,138375,Neighbourhoods,Public Protection
1230.71,Service Level Management Ltd,Transformation,Bsu,Central Mail,4871,Postages,29/03/22,Supplies & Services,138061,Transformation,Chief Executive Department 
1220,Vivid Resourcing (G2v Recruitment Group Ltd),Communities,Planning & Growth,Development Control,1161,Agency Staff,14/01/22,Employee Related Expenditure,135960,Communities,Planning
1215,Ludlow Hill Mot Centre,Neighbourhoods,Environmental Health,Hackney Carriage/Private Hire,1031,Contractors-Transport,01/03/22,Transport Related Expenditure,137848,Neighbourhoods,Public Protection
1200.61,Maltby & Company,Capital Expenditure,Communities,Gamston Community Hall Enhance,317,Contractors-Third Party,02/02/22,Third Party Payments,136263,Capital Expenditure,Neighbourhoods
1200,Hillcrest Bed & Breakfast,Neighbourhoods,Strategic Housing,Homeless B&B,1110,Housing-Emergency Accommodn,25/02/22,Supplies & Services,137077,Neighbourhoods,Public Protection
1200,Streetwise Environmental Ltd           1,Communities,Community Development,Environmental Promotion,1590,Legal & Professional Services,01/02/22,Supplies & Services,136003,Communities,Public Protection
1200,Vivid Resourcing (G2v Recruitment Group Ltd),Communities,Planning & Growth,Development Control,1161,Agency Staff,14/01/22,Employee Related Expenditure,135627,Communities,Planning
1197.46,Nsl Limited,Neighbourhoods,Leisure Contracts & Car Parks,Car Parks,1900,Maintenance Contracts - S&S,16/02/22,Supplies & Services,135731,Neighbourhoods,Neighbourhoods
1197.31,Via East Midlands Ltd,Capital Expenditure,Transformation & Innovation,Colliers Bp Cp Surface/Drain,210,Contractors-Third Party,08/03/22,Third Party Payments,136442,Capital Expenditure,Economic Growth
1195.2,Reach Publishing Services Limited,Communities,Planning & Growth,Development Control,1161,Advertising,14/01/22,Supplies & Services,135948,Communities,Planning
1188,Vivid Resourcing (G2v Recruitment Group Ltd),Communities,Planning & Growth,Development Control,1161,Agency Staff,22/03/22,Employee Related Expenditure,138699,Communities,Planning
1186.36,Edf Energy,Communities,Community Development,Sir Julien Cahn Pavilion,8993,Electricity,29/03/22,Premises Related Expenditure,138509,Communities,Neighbourhoods
1185,A R Signs Ltd,Finance & Corporate Services,"Performance, Repn & Comms",Performance And Reputation,4710,External Printing,16/02/22,Supplies & Services,136645,Finance & Corporate Services,Corporate Services
1184,Co-Operative Funeral Care,Neighbourhoods,Environmental Health,Public Health,1127,Welfare Burials,19/01/22,Supplies & Services,135749,Neighbourhoods,Public Protection
1174.16,Service Level Management Ltd,Transformation,Bsu,Central Mail,4871,Postages,18/02/22,Supplies & Services,137314,Transformation,Chief Executive Department 
1172.26,Daisy Corporate Services Trading Limited,Finance & Corporate Services,Ict,Telephones,4870,Mobiles,18/02/22,Supplies & Services,137065,Finance & Corporate Services,Corporate Services
1169.2,Streetwise Environmental Ltd           1,Transformation,Economic Regeneration,High Streets Safely,1881,Legal & Professional Services,29/03/22,Supplies & Services,137872,Transformation,Economic Growth
1161,Zurich Municipal,Finance & Corporate Services,Financial Services,Liability Claims,4921,Excesses Paid,07/03/22,Transfers Expenditure,137891,Finance & Corporate Services,Finance
1151.82,Calor Gas Limited,Communities,Community Development,West Park,8994,Gas,21/02/22,Premises Related Expenditure,137086,Communities,Neighbourhoods
1137.5,Browne Jacobson,Capital Income,Capital Receipts,"Sharphill, Edwalton (Wells Lan",9081,Legal & Professional Services,19/01/22,Supplies & Services,135946,Capital Income,Neighbourhoods
1125,Ludlow Hill Mot Centre,Neighbourhoods,Environmental Health,Hackney Carriage/Private Hire,1031,Contractors-Transport,29/03/22,Transport Related Expenditure,138954,Neighbourhoods,Public Protection
1125,Mti Technology Ltd,Finance & Corporate Services,Ict,It Rechargeable Costs,4722,Cyber Security,11/03/22,Supplies & Services,137958,Finance & Corporate Services,Corporate Services
1115.64,Sherwood Farms Ltd,Neighbourhoods,Waste & Fleet Management,Waste Collection,8403,Contractors-Supplies & Servs,11/03/22,Supplies & Services,138411,Neighbourhoods,Neighbourhoods
1109.27,Daisy Corporate Services Trading Limited,Finance & Corporate Services,Ict,Telephones,4870,Mobiles,01/02/22,Supplies & Services,133329,Finance & Corporate Services,Corporate Services
1100,Et Planning Ltd,Communities,Planning & Growth,Development Control,1161,Legal & Professional Services,14/01/22,Supplies & Services,135552,Communities,Planning
1100,Euromunicipal Ltd,Neighbourhoods,Waste & Fleet Management,Waste Collection,8403,Hire Of Transport/Plant,02/02/22,Transport Related Expenditure,136795,Neighbourhoods,Neighbourhoods
1100,Sue Griffiths Consulting Ltd,Transformation,Human Resources,Corporate Training,4893,Training Expenses,18/01/22,Employee Related Expenditure,135689,Transformation,Chief Executive Department 
1098.3,Reach Publishing Services Limited,Communities,Planning & Growth,Development Control,1161,Advertising,08/02/22,Supplies & Services,137055,Communities,Planning
1084.18,Sse Payment Centre,Transformation,Economic Regeneration,Cotgrave Precinct,1885,Electricity,08/02/22,Premises Related Expenditure,127658,Transformation,Economic Growth
1080,Jla,Neighbourhoods,Strategic Housing,Hostel Hound Lodge,1111,Service Maintenance Contracts,18/02/22,Premises Related Expenditure,136992,Neighbourhoods,Public Protection
1080,The Gourmet Chocolate Pizza Company,Liabilities,Long Term Liabilities,Leasehold Deposits,6623,Balance Sheet Exp In The Year,29/03/22,Balance Sheet Exp In The Year,138893,Liabilities,Finance
1077.5,Rattle And Roll Limited,Communities,Community Development,Holiday Activities & Food Prog,1594,Projects & Activities,07/03/22,Supplies & Services,136986,Communities,Neighbourhoods
1063.84,Complete Mailings,Neighbourhoods,Waste & Fleet Management,Green Bin Collection,8402,Postages,15/03/22,Supplies & Services,138181,Neighbourhoods,Neighbourhoods
1061.18,Service Level Management Ltd,Transformation,Bsu,Central Mail,4871,Postages,18/02/22,Supplies & Services,137313,Transformation,Chief Executive Department 
1050,Sonovate Limited,Neighbourhoods,Environmental Health,Environmental Health Ha,4743,Agency Staff,01/02/22,Employee Related Expenditure,136652,Neighbourhoods,Public Protection
1046,Reach Publishing Services Limited,Communities,Planning & Growth,Development Control,1161,Advertising,29/03/22,Supplies & Services,138939,Communities,Planning
1040,Nottingham City Council,Neighbourhoods,Waste & Fleet Management,Eastcroft Depot,4002,Olas - Nottm City Council,07/01/22,Third Party Payments,135559,Neighbourhoods,Neighbourhoods
1032.5,Browne Jacobson,Transformation,Property Services,Land Holdings,1884,Legal & Professional Services,14/01/22,Supplies & Services,135947,Transformation,Economic Growth
1030,County Fencing,Neighbourhoods,Waste & Fleet Management,Glass Recycling & Bring Sites,8407,Other Equipment/Materials,11/03/22,Supplies & Services,138363,Neighbourhoods,Neighbourhoods
1023.89,Nsl Limited,Neighbourhoods,Leisure Contracts & Car Parks,Car Parks,1900,Maintenance Contracts - S&S,21/02/22,Supplies & Services,136995,Neighbourhoods,Neighbourhoods
1023.74,Nsl Limited,Neighbourhoods,Leisure Contracts & Car Parks,Car Parks,1900,Maintenance Contracts - S&S,16/02/22,Supplies & Services,134329,Neighbourhoods,Neighbourhoods
1016.53,Lift & Engineering Services Ltd,Capital Expenditure,Transformation & Innovation,The Point,360,Contractors-Third Party,29/03/22,Third Party Payments,138964,Capital Expenditure,Neighbourhoods
1016.53,Lift & Engineering Services Ltd,Capital Expenditure,Transformation & Innovation,The Point,360,Contractors-Third Party,29/03/22,Third Party Payments,138965,Capital Expenditure,Neighbourhoods
1010.23,Dolphin Mobility East Mids Ltd,Liabilities,Current Liabilities,Creditors Control Account,5101,Sub Contractors Sums Deducted,04/02/22,Sub Contractors Sums Deducted,136548,Liabilities,Finance
1009.61,Nominet Uk,Finance & Corporate Services,Ict,It Rechargeable Costs,4722,Cyber Security,15/03/22,Supplies & Services,138388,Finance & Corporate Services,Corporate Services
1006.25,G2 Recruitment Solutions,Communities,Planning & Growth,Development Control,1161,Agency Staff,29/03/22,Employee Related Expenditure,137328,Communities,Planning
1000.45,Can Samba,Transformation,Economic Regeneration,High Streets Safely,1881,Legal & Professional Services,29/03/22,Supplies & Services,138971,Transformation,Economic Growth
1000,1st Haircut Barber,Assets,Current Assets,Covid19 Funding (Drs),6219,Addnl Restrictions Grant,18/02/22,Addnl Restrictions Grant,137533,Assets,Finance
1000,3spices Restaurant Limited,Assets,Current Assets,Covid19 Funding (Drs),6219,Addnl Restrictions Grant,29/03/22,Addnl Restrictions Grant,139056,Assets,Finance
1000,A Cut Above,Assets,Current Assets,Covid19 Funding (Drs),6219,Addnl Restrictions Grant,25/02/22,Addnl Restrictions Grant,137736,Assets,Finance
1000,Addict Beauty & Co,Assets,Current Assets,Covid19 Funding (Drs),6219,Addnl Restrictions Grant,02/02/22,Addnl Restrictions Grant,136860,Assets,Finance
1000,Adjust Massage Ltd,Assets,Current Assets,Covid19 Funding (Drs),6219,Addnl Restrictions Grant,08/02/22,Addnl Restrictions Grant,137147,Assets,Finance
1000,Agb Holisitic Therapy Ltd,Assets,Current Assets,Covid19 Funding (Drs),6219,Addnl Restrictions Grant,02/02/22,Addnl Restrictions Grant,136872,Assets,Finance
1000,Agb Nail Therapy Ltd,Assets,Current Assets,Covid19 Funding (Drs),6219,Addnl Restrictions Grant,02/02/22,Addnl Restrictions Grant,136863,Assets,Finance
1000,Alison Barker Spmu & Beauty Clinic,Assets,Current Assets,Covid19 Funding (Drs),6219,Addnl Restrictions Grant,17/03/22,Addnl Restrictions Grant,138723,Assets,Finance
1000,Anokhi Beauty,Assets,Current Assets,Covid19 Funding (Drs),6219,Addnl Restrictions Grant,18/02/22,Addnl Restrictions Grant,137512,Assets,Finance
1000,Antonia Waite,Assets,Current Assets,Covid19 Funding (Drs),6219,Addnl Restrictions Grant,27/01/22,Addnl Restrictions Grant,136463,Assets,Finance
1000,Aquarius Nails Ltd,Assets,Current Assets,Covid19 Funding (Drs),6219,Addnl Restrictions Grant,25/02/22,Addnl Restrictions Grant,137730,Assets,Finance
1000,Artisan Hair,Assets,Current Assets,Covid19 Funding (Drs),6219,Addnl Restrictions Grant,18/02/22,Addnl Restrictions Grant,137507,Assets,Finance
1000,Beautify,Assets,Current Assets,Covid19 Funding (Drs),6219,Addnl Restrictions Grant,25/02/22,Addnl Restrictions Grant,137742,Assets,Finance
1000,Beautique@Rotlimited,Assets,Current Assets,Covid19 Funding (Drs),6219,Addnl Restrictions Grant,27/01/22,Addnl Restrictions Grant,136483,Assets,Finance
1000,Beauty Clinic,Assets,Current Assets,Covid19 Funding (Drs),6219,Addnl Restrictions Grant,02/02/22,Addnl Restrictions Grant,136850,Assets,Finance
1000,Beauty Temple (Nottingham) Limited,Assets,Current Assets,Covid19 Funding (Drs),6219,Addnl Restrictions Grant,29/03/22,Addnl Restrictions Grant,139047,Assets,Finance
1000,Beauty Works By Lauren,Assets,Current Assets,Covid19 Funding (Drs),6219,Addnl Restrictions Grant,08/02/22,Addnl Restrictions Grant,137159,Assets,Finance
1000,Beyond The Fringe,Assets,Current Assets,Covid19 Funding (Drs),6219,Addnl Restrictions Grant,25/02/22,Addnl Restrictions Grant,137746,Assets,Finance
1000,Bingham Nails And Beauty,Assets,Current Assets,Covid19 Funding (Drs),6219,Addnl Restrictions Grant,27/01/22,Addnl Restrictions Grant,136507,Assets,Finance
1000,Bliss Beauty,Assets,Current Assets,Covid19 Funding (Drs),6219,Addnl Restrictions Grant,08/02/22,Addnl Restrictions Grant,137143,Assets,Finance
1000,Blu,Assets,Current Assets,Covid19 Funding (Drs),6219,Addnl Restrictions Grant,18/02/22,Addnl Restrictions Grant,137534,Assets,Finance
1000,Blu Barbering Limited,Assets,Current Assets,Covid19 Funding (Drs),6219,Addnl Restrictions Grant,02/02/22,Addnl Restrictions Grant,136874,Assets,Finance
1000,Blu Hair Tanning Ltd,Assets,Current Assets,Covid19 Funding (Drs),6219,Addnl Restrictions Grant,02/02/22,Addnl Restrictions Grant,136865,Assets,Finance
1000,Boudoir,Assets,Current Assets,Covid19 Funding (Drs),6219,Addnl Restrictions Grant,02/02/22,Addnl Restrictions Grant,136876,Assets,Finance
1000,Bracken Events Ltd,Assets,Current Assets,Covid19 Funding (Drs),6219,Addnl Restrictions Grant,02/02/22,Addnl Restrictions Grant,136836,Assets,Finance
1000,Bravo Boards Signwriting,Assets,Current Assets,Covid19 Funding (Drs),6219,Addnl Restrictions Grant,02/02/22,Addnl Restrictions Grant,136866,Assets,Finance
1000,Carmen'S Beauty & Holistic Therapy,Assets,Current Assets,Covid19 Funding (Drs),6219,Addnl Restrictions Grant,25/02/22,Addnl Restrictions Grant,137741,Assets,Finance
1000,Claire Elizabeth,Assets,Current Assets,Covid19 Funding (Drs),6219,Addnl Restrictions Grant,02/02/22,Addnl Restrictions Grant,136853,Assets,Finance
1000,Colour My Claws,Assets,Current Assets,Covid19 Funding (Drs),6219,Addnl Restrictions Grant,17/03/22,Addnl Restrictions Grant,138728,Assets,Finance
1000,Cosmetic Consultants Skin Clinic And Beauty,Assets,Current Assets,Covid19 Funding (Drs),6219,Addnl Restrictions Grant,02/02/22,Addnl Restrictions Grant,136883,Assets,Finance
1000,Courtyard Catering Limited,Assets,Current Assets,Covid19 Funding (Drs),6219,Addnl Restrictions Grant,25/02/22,Addnl Restrictions Grant,137727,Assets,Finance
1000,Cut N Curl,Assets,Current Assets,Covid19 Funding (Drs),6219,Addnl Restrictions Grant,25/02/22,Addnl Restrictions Grant,137737,Assets,Finance
1000,Dan@Silk Limited,Assets,Current Assets,Covid19 Funding (Drs),6219,Addnl Restrictions Grant,18/02/22,Addnl Restrictions Grant,137508,Assets,Finance
1000,Diamond Nails And Spa,Assets,Current Assets,Covid19 Funding (Drs),6219,Addnl Restrictions Grant,18/02/22,Addnl Restrictions Grant,137510,Assets,Finance
1000,Eden Hair Boutique,Assets,Current Assets,Covid19 Funding (Drs),6219,Addnl Restrictions Grant,08/02/22,Addnl Restrictions Grant,137172,Assets,Finance
1000,El Hairdresding,Assets,Current Assets,Covid19 Funding (Drs),6219,Addnl Restrictions Grant,29/03/22,Addnl Restrictions Grant,139024,Assets,Finance
1000,Elysian Parlour,Assets,Current Assets,Covid19 Funding (Drs),6219,Addnl Restrictions Grant,29/03/22,Addnl Restrictions Grant,139122,Assets,Finance
1000,Embellish Beauty Midlands Ltd,Assets,Current Assets,Covid19 Funding (Drs),6219,Addnl Restrictions Grant,27/01/22,Addnl Restrictions Grant,136511,Assets,Finance
1000,Equilibrium,Assets,Current Assets,Covid19 Funding (Drs),6219,Addnl Restrictions Grant,08/02/22,Addnl Restrictions Grant,137136,Assets,Finance
1000,Estelle Beauty Therapy,Assets,Current Assets,Covid19 Funding (Drs),6219,Addnl Restrictions Grant,25/02/22,Addnl Restrictions Grant,137734,Assets,Finance
1000,Everyone;S Looking Rosie,Assets,Current Assets,Covid19 Funding (Drs),6219,Addnl Restrictions Grant,18/02/22,Addnl Restrictions Grant,137509,Assets,Finance
1000,Gemma Lowe,Assets,Current Assets,Covid19 Funding (Drs),6219,Addnl Restrictions Grant,08/02/22,Addnl Restrictions Grant,137151,Assets,Finance
1000,Glebe House Cattery,Assets,Current Assets,Covid19 Funding (Drs),6219,Addnl Restrictions Grant,17/03/22,Addnl Restrictions Grant,138709,Assets,Finance
1000,Glow Uv Tanning,Assets,Current Assets,Covid19 Funding (Drs),6219,Addnl Restrictions Grant,02/02/22,Addnl Restrictions Grant,136861,Assets,Finance
1000,Goldy Locks,Assets,Current Assets,Covid19 Funding (Drs),6219,Addnl Restrictions Grant,08/02/22,Addnl Restrictions Grant,137135,Assets,Finance
1000,Grange Salon,Assets,Current Assets,Covid19 Funding (Drs),6219,Addnl Restrictions Grant,02/02/22,Addnl Restrictions Grant,136879,Assets,Finance
1000,Hair Matters,Assets,Current Assets,Covid19 Funding (Drs),6219,Addnl Restrictions Grant,27/01/22,Addnl Restrictions Grant,136470,Assets,Finance
1000,Hairways,Assets,Current Assets,Covid19 Funding (Drs),6219,Addnl Restrictions Grant,25/02/22,Addnl Restrictions Grant,137744,Assets,Finance
1000,Hare And Rabbit Salon,Assets,Current Assets,Covid19 Funding (Drs),6219,Addnl Restrictions Grant,02/02/22,Addnl Restrictions Grant,136856,Assets,Finance
1000,Harveys Mens Hair Salon,Assets,Current Assets,Covid19 Funding (Drs),6219,Addnl Restrictions Grant,18/02/22,Addnl Restrictions Grant,137489,Assets,Finance
1000,Heading Out Hair Salon,Assets,Current Assets,Covid19 Funding (Drs),6219,Addnl Restrictions Grant,02/02/22,Addnl Restrictions Grant,136847,Assets,Finance
1000,Helen Goldsbury/ Arrowolf Hair Studio,Assets,Current Assets,Covid19 Funding (Drs),6219,Addnl Restrictions Grant,02/02/22,Addnl Restrictions Grant,136862,Assets,Finance
1000,Hidden Salon,Assets,Current Assets,Covid19 Funding (Drs),6219,Addnl Restrictions Grant,29/03/22,Addnl Restrictions Grant,139029,Assets,Finance
1000,Indian Nights,Assets,Current Assets,Covid19 Funding (Drs),6219,Addnl Restrictions Grant,07/01/22,Addnl Restrictions Grant,135765,Assets,Finance
1000,Individuals Hair Design Ltd,Assets,Current Assets,Covid19 Funding (Drs),6219,Addnl Restrictions Grant,27/01/22,Addnl Restrictions Grant,136499,Assets,Finance
1000,Inflatable World Leisure Ltd,Assets,Current Assets,Covid19 Funding (Drs),6219,Addnl Restrictions Grant,29/03/22,Addnl Restrictions Grant,139040,Assets,Finance
1000,Invisible Touch Tanning And Beauty Ltd,Assets,Current Assets,Covid19 Funding (Drs),6219,Addnl Restrictions Grant,02/02/22,Addnl Restrictions Grant,136886,Assets,Finance
1000,James White Hair,Assets,Current Assets,Covid19 Funding (Drs),6219,Addnl Restrictions Grant,27/01/22,Addnl Restrictions Grant,136472,Assets,Finance
1000,J Dickson Hair Ltd,Assets,Current Assets,Covid19 Funding (Drs),6219,Addnl Restrictions Grant,08/02/22,Addnl Restrictions Grant,137166,Assets,Finance
1000,J.Nights Barbershop,Assets,Current Assets,Covid19 Funding (Drs),6219,Addnl Restrictions Grant,08/02/22,Addnl Restrictions Grant,137145,Assets,Finance
1000,Joshua Tree Ltd,Assets,Current Assets,Covid19 Funding (Drs),6219,Addnl Restrictions Grant,29/03/22,Addnl Restrictions Grant,139043,Assets,Finance
1000,Keirl Hairdressing,Assets,Current Assets,Covid19 Funding (Drs),6219,Addnl Restrictions Grant,17/03/22,Addnl Restrictions Grant,138712,Assets,Finance
1000,Klb Beauty,Assets,Current Assets,Covid19 Funding (Drs),6219,Addnl Restrictions Grant,18/02/22,Addnl Restrictions Grant,137526,Assets,Finance
1000,L.G Nails & Beauty,Assets,Current Assets,Covid19 Funding (Drs),6219,Addnl Restrictions Grant,18/02/22,Addnl Restrictions Grant,137487,Assets,Finance
1000,Lisas Barber Shop Ltd,Assets,Current Assets,Covid19 Funding (Drs),6219,Addnl Restrictions Grant,27/01/22,Addnl Restrictions Grant,136513,Assets,Finance
1000,Live 9 Events Ltd,Assets,Current Assets,Covid19 Funding (Drs),6219,Addnl Restrictions Grant,27/01/22,Addnl Restrictions Grant,136520,Assets,Finance
1000,Mai Holistic Therapy,Assets,Current Assets,Covid19 Funding (Drs),6219,Addnl Restrictions Grant,08/02/22,Addnl Restrictions Grant,137169,Assets,Finance
1000,Marie Hall Hairdressing Ltd,Assets,Current Assets,Covid19 Funding (Drs),6219,Addnl Restrictions Grant,18/02/22,Addnl Restrictions Grant,137524,Assets,Finance
1000,Medieval Entertainments Limited,Assets,Current Assets,Covid19 Funding (Drs),6219,Addnl Restrictions Grant,29/03/22,Addnl Restrictions Grant,139025,Assets,Finance
1000,Melton Barber,Assets,Current Assets,Covid19 Funding (Drs),6219,Addnl Restrictions Grant,17/03/22,Addnl Restrictions Grant,138722,Assets,Finance
1000,Morgan And Company (Nottm) Ltd,Assets,Current Assets,Covid19 Funding (Drs),6219,Addnl Restrictions Grant,02/02/22,Addnl Restrictions Grant,136881,Assets,Finance
1000,Morgan And Company Services Ltd,Assets,Current Assets,Covid19 Funding (Drs),6219,Addnl Restrictions Grant,02/02/22,Addnl Restrictions Grant,136882,Assets,Finance
1000,Mrs Lindsey Anne Zona,Assets,Current Assets,Covid19 Funding (Drs),6219,Addnl Restrictions Grant,08/02/22,Addnl Restrictions Grant,137121,Assets,Finance
1000,Munn & Co Hairdressing,Assets,Current Assets,Covid19 Funding (Drs),6219,Addnl Restrictions Grant,18/02/22,Addnl Restrictions Grant,137535,Assets,Finance
1000,No9 Mens Hair,Assets,Current Assets,Covid19 Funding (Drs),6219,Addnl Restrictions Grant,02/02/22,Addnl Restrictions Grant,136844,Assets,Finance
1000,Obsession Beauty Ltd,Assets,Current Assets,Covid19 Funding (Drs),6219,Addnl Restrictions Grant,08/02/22,Addnl Restrictions Grant,137152,Assets,Finance
1000,Peaches Beauty Salon,Assets,Current Assets,Covid19 Funding (Drs),6219,Addnl Restrictions Grant,08/02/22,Addnl Restrictions Grant,137141,Assets,Finance
1000,Ranya Company Nott Ltd,Assets,Current Assets,Covid19 Funding (Drs),6219,Addnl Restrictions Grant,17/03/22,Addnl Restrictions Grant,138715,Assets,Finance
1000,Rehab Beauty Ltd,Assets,Current Assets,Covid19 Funding (Drs),6219,Addnl Restrictions Grant,02/02/22,Addnl Restrictions Grant,136891,Assets,Finance
1000,Rocknrollerhair,Assets,Current Assets,Covid19 Funding (Drs),6219,Addnl Restrictions Grant,08/02/22,Addnl Restrictions Grant,137142,Assets,Finance
1000,Rural Antics Limited,Assets,Current Assets,Covid19 Funding (Drs),6219,Addnl Restrictions Grant,17/03/22,Addnl Restrictions Grant,138718,Assets,Finance
1000,Rural Retailers Ltd,Transformation,Economic Regeneration,Bingham Market Stalls,1880,Legal & Professional Services,04/01/22,Supplies & Services,135607,Transformation,Economic Growth
1000,Rushcliffe Athletic Club,Communities,Community Development,Sports Development,1593,Projects & Activities,08/03/22,Supplies & Services,138036,Communities,Neighbourhoods
1000,Saks Hair & Beauty - West Bridgford,Assets,Current Assets,Covid19 Funding (Drs),6219,Addnl Restrictions Grant,29/03/22,Addnl Restrictions Grant,139154,Assets,Finance
1000,Salon 99,Assets,Current Assets,Covid19 Funding (Drs),6219,Addnl Restrictions Grant,18/02/22,Addnl Restrictions Grant,137511,Assets,Finance
1000,Sanctum Tattoo Studio,Assets,Current Assets,Covid19 Funding (Drs),6219,Addnl Restrictions Grant,27/01/22,Addnl Restrictions Grant,136474,Assets,Finance
1000,Sarah Jane Storey,Assets,Current Assets,Covid19 Funding (Drs),6219,Addnl Restrictions Grant,18/02/22,Addnl Restrictions Grant,137514,Assets,Finance
1000,Scissor Happy,Assets,Current Assets,Covid19 Funding (Drs),6219,Addnl Restrictions Grant,17/03/22,Addnl Restrictions Grant,138711,Assets,Finance
1000,Scrunchies Hair Design,Assets,Current Assets,Covid19 Funding (Drs),6219,Addnl Restrictions Grant,18/02/22,Addnl Restrictions Grant,137486,Assets,Finance
1000,Secret Salon,Assets,Current Assets,Covid19 Funding (Drs),6219,Addnl Restrictions Grant,27/01/22,Addnl Restrictions Grant,136462,Assets,Finance
1000,Sharon Ann Collinson,Assets,Current Assets,Covid19 Funding (Drs),6219,Addnl Restrictions Grant,18/02/22,Addnl Restrictions Grant,137493,Assets,Finance
1000,Smart Beauty,Assets,Current Assets,Covid19 Funding (Drs),6219,Addnl Restrictions Grant,25/02/22,Addnl Restrictions Grant,137743,Assets,Finance
1000,Smart Hair,Assets,Current Assets,Covid19 Funding (Drs),6219,Addnl Restrictions Grant,25/02/22,Addnl Restrictions Grant,137725,Assets,Finance
1000,Smiffy'S Summer Event Catering Ltd,Assets,Current Assets,Covid19 Funding (Drs),6219,Addnl Restrictions Grant,17/03/22,Addnl Restrictions Grant,138710,Assets,Finance
1000,Soothe Luxury Skincare & Spa,Assets,Current Assets,Covid19 Funding (Drs),6219,Addnl Restrictions Grant,29/03/22,Addnl Restrictions Grant,139055,Assets,Finance
1000,Studio 83,Assets,Current Assets,Covid19 Funding (Drs),6219,Addnl Restrictions Grant,08/02/22,Addnl Restrictions Grant,137138,Assets,Finance
1000,Summers At Eleven,Assets,Current Assets,Covid19 Funding (Drs),6219,Addnl Restrictions Grant,17/03/22,Addnl Restrictions Grant,138729,Assets,Finance
1000,Synergy Beauty Studio,Assets,Current Assets,Covid19 Funding (Drs),6219,Addnl Restrictions Grant,02/02/22,Addnl Restrictions Grant,136880,Assets,Finance
1000,Teresa Marie Burns (Burns Hair Design),Assets,Current Assets,Covid19 Funding (Drs),6219,Addnl Restrictions Grant,18/02/22,Addnl Restrictions Grant,137494,Assets,Finance
1000,The Avenue Beauty Clinic,Assets,Current Assets,Covid19 Funding (Drs),6219,Addnl Restrictions Grant,02/02/22,Addnl Restrictions Grant,136852,Assets,Finance
1000,The Beauty Spot,Assets,Current Assets,Covid19 Funding (Drs),6219,Addnl Restrictions Grant,02/02/22,Addnl Restrictions Grant,136848,Assets,Finance
1000,The Bridgford Salon Ltd,Assets,Current Assets,Covid19 Funding (Drs),6219,Addnl Restrictions Grant,29/03/22,Addnl Restrictions Grant,139106,Assets,Finance
1000,The Hair Barn,Assets,Current Assets,Covid19 Funding (Drs),6219,Addnl Restrictions Grant,27/01/22,Addnl Restrictions Grant,136488,Assets,Finance
1000,The Hair Boutique,Assets,Current Assets,Covid19 Funding (Drs),6219,Addnl Restrictions Grant,08/02/22,Addnl Restrictions Grant,137140,Assets,Finance
1000,The Hair Technician Ltd,Assets,Current Assets,Covid19 Funding (Drs),6219,Addnl Restrictions Grant,18/02/22,Addnl Restrictions Grant,137521,Assets,Finance
1000,The Lash And Nail Bar,Assets,Current Assets,Covid19 Funding (Drs),6219,Addnl Restrictions Grant,08/02/22,Addnl Restrictions Grant,137156,Assets,Finance
1000,The Little Hair Boutique,Assets,Current Assets,Covid19 Funding (Drs),6219,Addnl Restrictions Grant,25/02/22,Addnl Restrictions Grant,137724,Assets,Finance
1000,The Little Retreat Day Spa,Assets,Current Assets,Covid19 Funding (Drs),6219,Addnl Restrictions Grant,08/02/22,Addnl Restrictions Grant,137134,Assets,Finance
1000,The Nail Beautique,Assets,Current Assets,Covid19 Funding (Drs),6219,Addnl Restrictions Grant,17/03/22,Addnl Restrictions Grant,138714,Assets,Finance
1000,The Salon,Assets,Current Assets,Covid19 Funding (Drs),6219,Addnl Restrictions Grant,27/01/22,Addnl Restrictions Grant,136471,Assets,Finance
1000,The Snug Hair And Beauty Lounge,Assets,Current Assets,Covid19 Funding (Drs),6219,Addnl Restrictions Grant,02/02/22,Addnl Restrictions Grant,136849,Assets,Finance
1000,The Split Screen Coffee Company,Assets,Current Assets,Covid19 Funding (Drs),6219,Addnl Restrictions Grant,02/02/22,Addnl Restrictions Grant,136875,Assets,Finance
1000,The Strand,Assets,Current Assets,Covid19 Funding (Drs),6219,Addnl Restrictions Grant,08/02/22,Addnl Restrictions Grant,137144,Assets,Finance
1000,The Tanning Room (Bingham),Assets,Current Assets,Covid19 Funding (Drs),6219,Addnl Restrictions Grant,02/02/22,Addnl Restrictions Grant,136873,Assets,Finance
1000,The Wrks Dj And Equipment Hire,Assets,Current Assets,Covid19 Funding (Drs),6219,Addnl Restrictions Grant,27/01/22,Addnl Restrictions Grant,136495,Assets,Finance
1000,Thistle Beauty Salon,Assets,Current Assets,Covid19 Funding (Drs),6219,Addnl Restrictions Grant,08/02/22,Addnl Restrictions Grant,137133,Assets,Finance
1000,Thompson & Gregory Limited,Assets,Current Assets,Covid19 Funding (Drs),6219,Addnl Restrictions Grant,27/01/22,Addnl Restrictions Grant,136518,Assets,Finance
1000,Total Image Health And Beauty Clinic,Assets,Current Assets,Covid19 Funding (Drs),6219,Addnl Restrictions Grant,08/02/22,Addnl Restrictions Grant,137139,Assets,Finance
1000,Trang'S Beauty Ltd,Assets,Current Assets,Covid19 Funding (Drs),6219,Addnl Restrictions Grant,27/01/22,Addnl Restrictions Grant,136508,Assets,Finance
1000,Treats Beauty And Aesthetics Limited,Assets,Current Assets,Covid19 Funding (Drs),6219,Addnl Restrictions Grant,08/02/22,Addnl Restrictions Grant,137161,Assets,Finance
1000,Uppercuts,Assets,Current Assets,Covid19 Funding (Drs),6219,Addnl Restrictions Grant,08/02/22,Addnl Restrictions Grant,137162,Assets,Finance
1000,Urban Retreat Ruddington Nail Bar,Assets,Current Assets,Covid19 Funding (Drs),6219,Addnl Restrictions Grant,17/03/22,Addnl Restrictions Grant,138717,Assets,Finance
1000,Vanity Beauty Rooms Ltd,Assets,Current Assets,Covid19 Funding (Drs),6219,Addnl Restrictions Grant,02/02/22,Addnl Restrictions Grant,136885,Assets,Finance
1000,Vellum Tattoo,Assets,Current Assets,Covid19 Funding (Drs),6219,Addnl Restrictions Grant,08/02/22,Addnl Restrictions Grant,137148,Assets,Finance
1000,Village Hair,Assets,Current Assets,Covid19 Funding (Drs),6219,Addnl Restrictions Grant,17/03/22,Addnl Restrictions Grant,138716,Assets,Finance
1000,Warrens Barber Shop Ltd.,Assets,Current Assets,Covid19 Funding (Drs),6219,Addnl Restrictions Grant,27/01/22,Addnl Restrictions Grant,136500,Assets,Finance
1000,Yk Hair & Beauty,Assets,Current Assets,Covid19 Funding (Drs),6219,Addnl Restrictions Grant,25/02/22,Addnl Restrictions Grant,137740,Assets,Finance
1000,York Hair Ltd,Assets,Current Assets,Covid19 Funding (Drs),6219,Addnl Restrictions Grant,25/02/22,Addnl Restrictions Grant,137718,Assets,Finance
993.87,Lyreco,Communities,Community Development,Facilities Team,4714,Cleaning Equipment/Materials,29/03/22,Supplies & Services,138130,Communities,Neighbourhoods
990,Pee Wee Toilet Hire,Communities,Community Development,Arts & Events,1550,Projects & Activities,29/03/22,Supplies & Services,139001,Communities,Neighbourhoods
987.44,Service Level Management Ltd,Transformation,Bsu,Central Mail,4871,Postages,18/02/22,Supplies & Services,137355,Transformation,Chief Executive Department 
980.94,Service Level Management Ltd,Transformation,Bsu,Central Mail,4871,Postages,07/03/22,Supplies & Services,137823,Transformation,Chief Executive Department 
975.39,Via East Midlands Ltd,Capital Expenditure,Communities,West Park Fencing & Cp,676,Contractors-Third Party,08/03/22,Third Party Payments,136442,Capital Expenditure,Neighbourhoods
975,Inform Cpi Ltd,Finance & Corporate Services,Revenues & Benefits,Nndr,1038,Legal & Professional Services,11/01/22,Supplies & Services,135695,Finance & Corporate Services,Finance
973.87,Reach Publishing Services Limited,Communities,Planning & Growth,Development Control,1161,Advertising,04/01/22,Supplies & Services,133938,Communities,Planning
972.72,Service Level Management Ltd,Transformation,Bsu,Central Mail,4871,Postages,18/02/22,Supplies & Services,137311,Transformation,Chief Executive Department 
963.44,Arden Winch & Co Ltd,Neighbourhoods,Waste & Fleet Management,Waste Collection,8403,Other Equipment/Materials,08/02/22,Supplies & Services,136238,Neighbourhoods,Neighbourhoods
959.04,Thorn Baker Ltd,Neighbourhoods,Waste & Fleet Management,Waste Collection,8403,Agency Staff,07/03/22,Employee Related Expenditure,137813,Neighbourhoods,Neighbourhoods
954.34,Service Level Management Ltd,Transformation,Bsu,Central Mail,4871,Postages,18/02/22,Supplies & Services,137312,Transformation,Chief Executive Department 
936,G2 Recruitment Solutions,Neighbourhoods,Environmental Health,Environmental Health Ha,4743,Agency Staff,04/01/22,Employee Related Expenditure,134490,Neighbourhoods,Public Protection
929.6,Reach Publishing Services Limited,Communities,Planning & Growth,Development Control,1161,Advertising,07/01/22,Supplies & Services,135441,Communities,Planning
916,Quantum Fire & Security Ltd,Transformation,Property Services,The Point,1886,Responsive Works - Buildings,08/02/22,Premises Related Expenditure,136191,Transformation,Economic Growth
912.5,Sonovate Limited,Neighbourhoods,Environmental Health,Environmental Health Ha,4743,Agency Staff,23/02/22,Employee Related Expenditure,137484,Neighbourhoods,Public Protection
912.5,Sonovate Limited,Neighbourhoods,Environmental Health,Environmental Health Ha,4743,Agency Staff,11/03/22,Employee Related Expenditure,138435,Neighbourhoods,Public Protection
910,Hillcrest Bed & Breakfast,Neighbourhoods,Strategic Housing,Homeless B&B,1110,Housing-Emergency Accommodn,07/01/22,Supplies & Services,135629,Neighbourhoods,Public Protection
903.56,Lyreco,Communities,Community Development,Facilities Team,4714,Other Miscellaneous Expenses,25/01/22,Supplies & Services,135616,Communities,Neighbourhoods
900,Belinda Poon,Communities,Community Development,Arts & Events,1550,Projects & Activities,29/03/22,Supplies & Services,138658,Communities,Neighbourhoods
900,Nufuture Recruitment Ltd,Finance & Corporate Services,Ict,It,4703,Other Miscellaneous Expenses,18/02/22,Supplies & Services,136821,Finance & Corporate Services,Corporate Services
900,Nufuture Recruitment Ltd,Finance & Corporate Services,Ict,It Rechargeable Costs,4722,Other Miscellaneous Expenses,02/03/22,Supplies & Services,138011,Finance & Corporate Services,Corporate Services
900,Nufuture Recruitment Ltd,Finance & Corporate Services,Ict,It Rechargeable Costs,4722,Other Miscellaneous Expenses,07/03/22,Supplies & Services,137840,Finance & Corporate Services,Corporate Services
900,Nufuture Recruitment Ltd,Finance & Corporate Services,Ict,It Rechargeable Costs,4722,Other Miscellaneous Expenses,07/03/22,Supplies & Services,138077,Finance & Corporate Services,Corporate Services
900,Nufuture Recruitment Ltd,Finance & Corporate Services,Ict,It Rechargeable Costs,4722,Other Miscellaneous Expenses,08/03/22,Supplies & Services,138178,Finance & Corporate Services,Corporate Services
900,Nufuture Recruitment Ltd,Finance & Corporate Services,Ict,It Rechargeable Costs,4722,Other Miscellaneous Expenses,17/03/22,Supplies & Services,138406,Finance & Corporate Services,Corporate Services
900,Sonovate Limited,Neighbourhoods,Environmental Health,Environmental Health Ha,4743,Agency Staff,08/02/22,Employee Related Expenditure,137097,Neighbourhoods,Public Protection
900,The Gourmet Chocolate Pizza Company,Liabilities,Long Term Liabilities,Leasehold Deposits,6623,Balance Sheet Exp In The Year,29/03/22,Balance Sheet Exp In The Year,138894,Liabilities,Finance
897.75,British Parking Association,Neighbourhoods,Leisure Contracts & Car Parks,Car Parks,1900,Other Equipment/Materials,05/01/22,Supplies & Services,135354,Neighbourhoods,Neighbourhoods
884,Streetwise Environmental Ltd           1,Transformation,Economic Regeneration,High Streets Safely,1881,Legal & Professional Services,14/02/22,Supplies & Services,136818,Transformation,Economic Growth
860,Greenhalgh Kerr,Finance & Corporate Services,Revenues & Benefits,Council Tax,1045,Legal & Professional Services,16/02/22,Supplies & Services,136011,Finance & Corporate Services,Finance
855.95,Killgerm Chemicals Ltd,Neighbourhoods,Environmental Health,Pest Control,1062,Other Equipment/Materials,29/03/22,Supplies & Services,136996,Neighbourhoods,Public Protection
855,Hbinfo Ltd,Finance & Corporate Services,Revenues & Benefits,Housing Benefits Admin.,1140,Subscriptions,18/02/22,Supplies & Services,136827,Finance & Corporate Services,Finance
851.68,Print Image Network Ltd,Finance & Corporate Services,Democratic Services,Electoral Registration,1026,External Printing,21/02/22,Supplies & Services,137063,Finance & Corporate Services,Chief Executive Department 
845,Hillcrest Bed & Breakfast,Neighbourhoods,Strategic Housing,Homeless B&B,1110,Housing-Emergency Accommodn,25/02/22,Supplies & Services,137076,Neighbourhoods,Public Protection
845,Hillcrest Bed & Breakfast,Neighbourhoods,Strategic Housing,Homeless B&B,1110,Housing-Emergency Accommodn,22/03/22,Supplies & Services,138691,Neighbourhoods,Public Protection
840,Hillcrest Bed & Breakfast,Neighbourhoods,Strategic Housing,Homeless B&B,1110,Housing-Emergency Accommodn,29/03/22,Supplies & Services,138957,Neighbourhoods,Public Protection
834.6,Eon,Transformation,Property Services,New Offices - Cotgrave,4798,Electricity,21/02/22,Premises Related Expenditure,137388,Transformation,Economic Growth
831,Edf Energy,Communities,Community Development,Sir Julien Cahn Pavilion,8993,Electricity,29/03/22,Premises Related Expenditure,138527,Communities,Neighbourhoods
825,Hillcrest Bed & Breakfast,Neighbourhoods,Strategic Housing,Homeless B&B,1110,Housing-Emergency Accommodn,08/03/22,Supplies & Services,138282,Neighbourhoods,Public Protection
825,Wilford Lane Garage & Autocentre,Neighbourhoods,Environmental Health,Hackney Carriage/Private Hire,1031,Contractors-Transport,11/03/22,Transport Related Expenditure,138058,Neighbourhoods,Public Protection
819.22,Severn Trent Water,Neighbourhoods,Strategic Housing,Hostel Hound Lodge,1111,Water Charges,21/01/22,Premises Related Expenditure,136271,Neighbourhoods,Public Protection
819,East Midlands Building Consultancy,Capital Expenditure,Communities,Rcp Enhancements,504,Contractors-Third Party,02/02/22,Third Party Payments,136819,Capital Expenditure,Economic Growth
815.7,Maltby & Company,Transformation,Property Services,Land Holdings,1884,Planned Maintenance Recharge,02/03/22,Supplies & Services,137402,Transformation,Economic Growth
812.5,Sonovate Limited,Neighbourhoods,Environmental Health,Environmental Health Ha,4743,Agency Staff,16/02/22,Employee Related Expenditure,137320,Neighbourhoods,Public Protection
808.66,Staddon & Sons (Nottingham Ltd),Neighbourhoods,Strategic Housing,Hostel Hound Lodge,1111,Other Miscellaneous Expenses,02/03/22,Supplies & Services,137994,Neighbourhoods,Public Protection
803,Arc Industrial Cladding & Roofing Ltd,Transformation,Property Services,"Colliers, Cotgrave",1898,Planned Maintenance Recharge,29/03/22,Supplies & Services,138889,Transformation,Economic Growth
800,Cotgrave Town Council,Finance & Corporate Services,Democratic Services,Members Services,1000,Grants,17/03/22,Supplies & Services,138351,Finance & Corporate Services,Corporate Services
800,Idox Software Limited,Communities,Planning & Growth,Development Control,1161,Training Expenses,17/03/22,Employee Related Expenditure,138037,Communities,Planning
800,Rural Retailers Ltd,Transformation,Economic Regeneration,Bingham Market Stalls,1880,Legal & Professional Services,16/02/22,Supplies & Services,137406,Transformation,Economic Growth
800,Rural Retailers Ltd,Transformation,Economic Regeneration,Bingham Market Stalls,1880,Legal & Professional Services,02/03/22,Supplies & Services,138046,Transformation,Economic Growth
799.2,Thorn Baker Ltd,Neighbourhoods,Waste & Fleet Management,Waste Collection,8403,Agency Staff,11/01/22,Employee Related Expenditure,135550,Neighbourhoods,Neighbourhoods
799.2,Thorn Baker Ltd,Neighbourhoods,Waste & Fleet Management,Waste Collection,8403,Agency Staff,11/01/22,Employee Related Expenditure,135760,Neighbourhoods,Neighbourhoods
799.2,Thorn Baker Ltd,Neighbourhoods,Waste & Fleet Management,Waste Collection,8403,Agency Staff,07/03/22,Employee Related Expenditure,137934,Neighbourhoods,Neighbourhoods
799.2,Thorn Baker Ltd,Neighbourhoods,Waste & Fleet Management,Waste Collection,8403,Agency Staff,07/03/22,Employee Related Expenditure,138029,Neighbourhoods,Neighbourhoods
799.2,Thorn Baker Ltd,Neighbourhoods,Waste & Fleet Management,Waste Collection,8403,Agency Staff,15/03/22,Employee Related Expenditure,138273,Neighbourhoods,Neighbourhoods
799.2,Thorn Baker Ltd,Neighbourhoods,Waste & Fleet Management,Waste Collection,8403,Agency Staff,17/03/22,Employee Related Expenditure,138529,Neighbourhoods,Neighbourhoods
799.2,Thorn Baker Ltd,Neighbourhoods,Waste & Fleet Management,Waste Collection,8403,Agency Staff,29/03/22,Employee Related Expenditure,138892,Neighbourhoods,Neighbourhoods
799.2,Thorn Baker Ltd,Neighbourhoods,Waste & Fleet Management,Waste Collection,8403,Agency Staff,29/03/22,Employee Related Expenditure,138917,Neighbourhoods,Neighbourhoods
794.84,Eon,Transformation,Property Services,New Offices - Cotgrave,4798,Electricity,21/01/22,Premises Related Expenditure,136116,Transformation,Economic Growth
787.5,Sonovate Limited,Neighbourhoods,Environmental Health,Environmental Health Ha,4743,Agency Staff,11/03/22,Employee Related Expenditure,138454,Neighbourhoods,Public Protection
780,Inform Cpi Ltd,Finance & Corporate Services,Revenues & Benefits,Nndr,1038,Legal & Professional Services,15/03/22,Supplies & Services,138168,Finance & Corporate Services,Finance
770,William Saunders,Capital Expenditure,Transformation & Innovation,The Crematorium,684,Contractors-Third Party,29/03/22,Third Party Payments,138449,Capital Expenditure,Neighbourhoods
758.33,L S Recycling,Neighbourhoods,Waste & Fleet Management,Glass Recycling & Bring Sites,8407,Other Services,21/01/22,Supplies & Services,135867,Neighbourhoods,Neighbourhoods
755.36,Elexcel Ltd,Transformation,Property Services,Hollygate Lane Ph3 (Manvers),1897,Planned Maintenance Recharge,29/03/22,Supplies & Services,137944,Transformation,Economic Growth
750,Direct Trade Bags,Transformation,Economic Regeneration,Bingham Market Stalls,1880,Advertising,15/03/22,Supplies & Services,138531,Transformation,Economic Growth
750,Hillcrest Bed & Breakfast,Neighbourhoods,Strategic Housing,Homeless B&B,1110,Housing-Emergency Accommodn,29/03/22,Supplies & Services,138693,Neighbourhoods,Public Protection
750,Howard Ward Associates Ltd,Transformation,Property Services,Land Holdings,1884,Legal & Professional Services,19/01/22,Supplies & Services,135832,Transformation,Economic Growth
750,Howard Ward Associates Ltd,Transformation,Property Services,Unit 10 Moorbridge,4788,Legal & Professional Services,11/01/22,Supplies & Services,135551,Transformation,Economic Growth
750,Sonovate Limited,Neighbourhoods,Environmental Health,Environmental Health Ha,4743,Agency Staff,21/01/22,Employee Related Expenditure,136284,Neighbourhoods,Public Protection
750,Sonovate Limited,Neighbourhoods,Environmental Health,Environmental Health Ha,4743,Agency Staff,02/03/22,Employee Related Expenditure,138038,Neighbourhoods,Public Protection
750,The Air Hostess,Assets,Current Assets,Covid19 Funding (Drs),6219,Addnl Restrictions Grant,07/01/22,Addnl Restrictions Grant,135769,Assets,Finance
750,West Bridgford Wire,Communities,Community Development,Arts & Events,1550,Projects & Activities,14/01/22,Supplies & Services,135953,Communities,Neighbourhoods
742.82,Streetwise Environmental Ltd           1,Transformation,Economic Regeneration,High Streets Safely,1881,Legal & Professional Services,19/01/22,Supplies & Services,135876,Transformation,Economic Growth
742,Idox Software Limited,Finance & Corporate Services,Ict,It Rechargeable Costs,4722,Maintenance Contracts - S&S,21/02/22,Supplies & Services,137336,Finance & Corporate Services,Corporate Services
741.78,Sse Payment Centre,Transformation,Customer Services,Customer Services,4807,Electricity,08/02/22,Premises Related Expenditure,136539,Transformation,Corporate Services
740,Inform Cpi Ltd,Finance & Corporate Services,Revenues & Benefits,Nndr,1038,Legal & Professional Services,16/02/22,Supplies & Services,136279,Finance & Corporate Services,Finance
732.2,Reach Publishing Services Limited,Communities,Planning & Growth,Development Control,1161,Advertising,29/03/22,Supplies & Services,138940,Communities,Planning
730.5,Chine House Veterinary,Neighbourhoods,Environmental Health,Housing Standards,1129,Legal & Professional Services,16/02/22,Supplies & Services,137349,Neighbourhoods,Public Protection
726.62,Acs Systems Uk Ltd T/A Acs Office Solutions,Finance & Corporate Services,Ict,It Rechargeable Costs,4722,Other Peripherals,25/02/22,Supplies & Services,137091,Finance & Corporate Services,Corporate Services
720.16,Arden Winch & Co Ltd,Neighbourhoods,Waste & Fleet Management,Waste Collection,8403,Other Equipment/Materials,11/03/22,Supplies & Services,138155,Neighbourhoods,Neighbourhoods
719.16,Cotgrave Town Council,Transformation,Economic Regeneration,Cotgrave Precinct,1885,Grounds Maintenance,01/02/22,Premises Related Expenditure,136129,Transformation,Economic Growth
715,Hillcrest Bed & Breakfast,Neighbourhoods,Strategic Housing,Homeless B&B,1110,Housing-Emergency Accommodn,27/01/22,Supplies & Services,136448,Neighbourhoods,Public Protection
700,Keyworth Table Tennis Club,Finance & Corporate Services,Democratic Services,Members Services,1000,Grants,29/03/22,Supplies & Services,138929,Finance & Corporate Services,Corporate Services
700,Licence Check Ltd,Neighbourhoods,Environmental Health,Hackney Carriage/Private Hire,1031,Other Equipment/Materials,08/02/22,Supplies & Services,137062,Neighbourhoods,Public Protection
700,Radford Care Group,Communities,Community Development,Health Development,1058,Other Miscellaneous Expenses,11/01/22,Supplies & Services,135751,Communities,Neighbourhoods
700,Sonovate Limited,Neighbourhoods,Environmental Health,Environmental Health Ha,4743,Agency Staff,11/03/22,Employee Related Expenditure,138458,Neighbourhoods,Public Protection
699.3,Thorn Baker Ltd,Neighbourhoods,Waste & Fleet Management,Waste Collection,8403,Agency Staff,21/01/22,Employee Related Expenditure,136104,Neighbourhoods,Neighbourhoods
691,Whitecroft Lighting Ltd,Transformation,Property Services,Arena Civic Centre,4718,Planned Maintenance Recharge,29/03/22,Supplies & Services,137061,Transformation,Economic Growth
690,Origin Surveys Limited,Communities,Planning & Growth,Development Control,1161,Legal & Professional Services,19/01/22,Supplies & Services,135682,Communities,Planning
685.12,Edf Energy,Neighbourhoods,Strategic Housing,Hostel Hound Lodge,1111,Electricity,15/03/22,Premises Related Expenditure,138506,Neighbourhoods,Public Protection
682.6,Sherwood Farms Ltd,Neighbourhoods,Waste & Fleet Management,Waste Collection,8403,Contractors-Supplies & Servs,11/01/22,Supplies & Services,135882,Neighbourhoods,Neighbourhoods
682.5,Browne Jacobson,Transformation,Legal,Legal Services,4701,Legal & Professional Services,25/02/22,Supplies & Services,137291,Transformation,Chief Executive Department 
681.73,Adt Fire And Security Plc,Neighbourhoods,Strategic Housing,Hostel Hound Lodge,1111,Service Maintenance Contracts,14/01/22,Premises Related Expenditure,135860,Neighbourhoods,Public Protection
680,Nottingham Developments Ltd,Capital Expenditure,Communities,Gamston Community Hall Enhance,317,Contractors-Supplies & Servs,07/01/22,Supplies & Services,135733,Capital Expenditure,Neighbourhoods
679.9,Reach Publishing Services Limited,Communities,Planning & Growth,Development Control,1161,Advertising,17/03/22,Supplies & Services,138010,Communities,Planning
678,Direct Trade Bags,Transformation,Economic Regeneration,High Streets Safely,1881,Legal & Professional Services,29/03/22,Supplies & Services,138956,Transformation,Economic Growth
675,C A Wood T/A Orange Wood Design,Finance & Corporate Services,"Performance, Repn & Comms",Performance And Reputation,4710,Legal & Professional Services,08/02/22,Supplies & Services,137096,Finance & Corporate Services,Corporate Services
675,Hillcrest Bed & Breakfast,Neighbourhoods,Strategic Housing,Homeless B&B,1110,Housing-Emergency Accommodn,29/03/22,Supplies & Services,138972,Neighbourhoods,Public Protection
675,Vivid Resourcing (G2v Recruitment Group Ltd),Communities,Planning & Growth,Development Control,1161,Agency Staff,15/03/22,Employee Related Expenditure,138308,Communities,Planning
675,Wilford Lane Garage & Autocentre,Neighbourhoods,Environmental Health,Hackney Carriage/Private Hire,1031,Contractors-Transport,07/01/22,Transport Related Expenditure,135685,Neighbourhoods,Public Protection
669.22,Stark Software International,Communities,Community Development,West Park,8994,Electricity,29/03/22,Premises Related Expenditure,137051,Communities,Neighbourhoods
669.22,Stark Software International,Transformation,Property Services,Parish Run Pub Conveniences,1072,Electricity,29/03/22,Premises Related Expenditure,137051,Transformation,Economic Growth
666.28,Ruddington Parish Council,Neighbourhoods,Waste & Fleet Management,Glass Recycling & Bring Sites,8407,Other Services,01/03/22,Supplies & Services,137899,Neighbourhoods,Neighbourhoods
665,Inform Cpi Ltd,Finance & Corporate Services,Revenues & Benefits,Nndr,1038,Legal & Professional Services,11/01/22,Supplies & Services,135694,Finance & Corporate Services,Finance
656,Hodm Management Services,Transformation,Property Services,Hollygate Lane Ph3 (Manvers),1897,Service Maintenance Contracts,03/03/22,Premises Related Expenditure,137467,Transformation,Economic Growth
650,A R Signs Ltd,Finance & Corporate Services,"Performance, Repn & Comms",Performance And Reputation,4710,External Printing,11/01/22,Supplies & Services,135470,Finance & Corporate Services,Corporate Services
650,Bingham Community Events Group,Finance & Corporate Services,Democratic Services,Members Services,1000,Grants,07/03/22,Supplies & Services,137989,Finance & Corporate Services,Corporate Services
650,Bingham Rfc Ltd,Finance & Corporate Services,Democratic Services,Members Services,1000,Grants,22/03/22,Supplies & Services,138706,Finance & Corporate Services,Corporate Services
650,Hex Productions,Finance & Corporate Services,"Performance, Repn & Comms",Performance And Reputation,4710,Legal & Professional Services,07/01/22,Supplies & Services,135615,Finance & Corporate Services,Corporate Services
650,Hex Productions,Finance & Corporate Services,"Performance, Repn & Comms",Performance And Reputation,4710,Legal & Professional Services,16/02/22,Supplies & Services,137279,Finance & Corporate Services,Corporate Services
650,Hex Productions,Finance & Corporate Services,"Performance, Repn & Comms",Performance And Reputation,4710,Legal & Professional Services,15/03/22,Supplies & Services,138350,Finance & Corporate Services,Corporate Services
641.49,Total Gas And Power Ltd,Communities,Community Development,Gresham,8950,Gas,07/03/22,Premises Related Expenditure,137892,Communities,Neighbourhoods
641.07,Acs Systems Uk Ltd T/A Acs Office Solutions,Finance & Corporate Services,Ict,It Rechargeable Costs,4722,Other Peripherals,18/02/22,Supplies & Services,133959,Finance & Corporate Services,Corporate Services
639.48,Prestige Air Technology Ltd,Transformation,Property Services,Arena Civic Centre,4718,Responsive Works - Buildings,01/02/22,Premises Related Expenditure,135995,Transformation,Economic Growth
627.6,Reach Publishing Services Limited,Communities,Planning & Growth,Development Control,1161,Advertising,17/03/22,Supplies & Services,138139,Communities,Planning
624.64,Streetwise Environmental Ltd           1,Communities,Community Development,Health Development,1058,Other Miscellaneous Expenses,29/03/22,Supplies & Services,138563,Communities,Neighbourhoods
615,Nottingham City Council,Neighbourhoods,Waste & Fleet Management,Eastcroft Depot,4002,Olas - Nottm City Council,17/03/22,Third Party Payments,138542,Neighbourhoods,Neighbourhoods
614.86,Edf Energy,Communities,Community Development,Rushcliffe Country Park,1375,Electricity,14/01/22,Premises Related Expenditure,135938,Communities,Neighbourhoods
612,A.T Alarms,Transformation,Property Services,Unit 10 Moorbridge,4788,Service Maintenance Contracts,25/01/22,Premises Related Expenditure,135992,Transformation,Economic Growth
607,A R Signs Ltd,Finance & Corporate Services,"Performance, Repn & Comms",Performance And Reputation,4710,External Printing,11/01/22,Supplies & Services,135471,Finance & Corporate Services,Corporate Services
603,Greenhalgh Kerr,Finance & Corporate Services,Revenues & Benefits,Council Tax,1045,Legal & Professional Services,16/02/22,Supplies & Services,136010,Finance & Corporate Services,Finance
602.63,Edf Energy,Neighbourhoods,Strategic Housing,Hostel Hound Lodge,1111,Electricity,14/01/22,Premises Related Expenditure,135930,Neighbourhoods,Public Protection
600,4th West Bridgford Scout Group,Finance & Corporate Services,Democratic Services,Members Services,1000,Grants,23/02/22,Supplies & Services,137476,Finance & Corporate Services,Corporate Services
600,B Allsop And Sons,Neighbourhoods,Environmental Health,Envirocrime,1124,Contractors-Supplies & Servs,15/03/22,Supplies & Services,136990,Neighbourhoods,Public Protection
600,Ncc Pension Fund,Finance & Corporate Services,Financial Services,Financial Services,4705,External Audit Fee,29/03/22,Supplies & Services,138930,Finance & Corporate Services,Finance
595,Browne Jacobson,Transformation,Property Services,Land Holdings,1884,Legal & Professional Services,07/03/22,Supplies & Services,137815,Transformation,Economic Growth
595,M.R.J.Faulks & Son Ltd,Communities,Community Development,Rushcliffe Country Park,1375,Maintenance Contracts - S&S,29/03/22,Supplies & Services,138514,Communities,Neighbourhoods
590,Jjg Consultancy & Coaching Services Ltd,Communities,Planning & Growth,Development Control,1161,Training Expenses,01/03/22,Employee Related Expenditure,137933,Communities,Planning
590,Nottinghamshire County Council,Communities,Community Development,Holiday Activities & Food Prog,1594,Projects & Activities,04/02/22,Supplies & Services,136137,Communities,Neighbourhoods
587.95,East Leake Bowls Club,Finance & Corporate Services,Democratic Services,Members Services,1000,Grants,28/01/22,Supplies & Services,136345,Finance & Corporate Services,Corporate Services
586,Friends Of Sharphill Wood,Communities,Community Development,Environmental Promotion,1590,Grants,05/01/22,Supplies & Services,134619,Communities,Public Protection
584,Nottingham City Council,Neighbourhoods,Waste & Fleet Management,Eastcroft Depot,4002,Olas - Nottm City Council,15/03/22,Third Party Payments,138133,Neighbourhoods,Neighbourhoods
580.86,Total Gas And Power Ltd,Communities,Community Development,Gresham,8950,Gas,21/01/22,Premises Related Expenditure,135969,Communities,Neighbourhoods
576.88,Bt Telephone Payment Centre,Finance & Corporate Services,Ict,Telephones,4870,Telephone Rental,25/01/22,Supplies & Services,135864,Finance & Corporate Services,Corporate Services
575.39,Sse Payment Centre,Transformation,Economic Regeneration,Cotgrave Precinct,1885,Electricity,08/02/22,Premises Related Expenditure,127659,Transformation,Economic Growth
564.73,Teleware Plc,Finance & Corporate Services,Ict,Telephones,4870,Telephone Rental,08/03/22,Supplies & Services,138169,Finance & Corporate Services,Corporate Services
561.5,Ann Et Vin,Communities,Community Development,Arts & Events,1550,Projects & Activities,03/03/22,Supplies & Services,137806,Communities,Neighbourhoods
561,Teleware Plc,Finance & Corporate Services,Ict,Telephones,4870,Telephone Rental,16/02/22,Supplies & Services,137067,Finance & Corporate Services,Corporate Services
555,St Pauls Church,Finance & Corporate Services,Democratic Services,Members Services,1000,Grants,23/02/22,Supplies & Services,137392,Finance & Corporate Services,Corporate Services
553.92,Eon,Transformation,Property Services,Unit 10 Moorbridge,4788,Electricity,08/03/22,Premises Related Expenditure,137809,Transformation,Economic Growth
553.13,Eon,Transformation,Property Services,Unit 10 Moorbridge,4788,Electricity,21/02/22,Premises Related Expenditure,137282,Transformation,Economic Growth
549.51,Eon,Transformation,Property Services,Unit 10 Moorbridge,4788,Electricity,14/01/22,Premises Related Expenditure,135861,Transformation,Economic Growth
548.44,Total Gas And Power Ltd,Neighbourhoods,Strategic Housing,Hostel Hound Lodge,1111,Gas,15/03/22,Premises Related Expenditure,137893,Neighbourhoods,Public Protection
540,Vivid Resourcing (G2v Recruitment Group Ltd),Communities,Planning & Growth,Development Control,1161,Agency Staff,08/02/22,Employee Related Expenditure,136226,Communities,Planning
539,Rics,Transformation,Property Services,Property Services,4713,Professional Subscriptions,01/03/22,Employee Related Expenditure,137396,Transformation,Economic Growth
537.11,Castle Water Limited,Communities,Community Development,Gamston Community Hall,8992,Water Charges,21/01/22,Premises Related Expenditure,135850,Communities,Neighbourhoods
536.5,Total Gas And Power Ltd,Communities,Community Development,Gresham,8950,Gas,29/03/22,Premises Related Expenditure,138522,Communities,Neighbourhoods
526.73,Water Plus,Transformation,Economic Regeneration,Bingham Market Stalls,1880,Water Charges,28/01/22,Premises Related Expenditure,135991,Transformation,Economic Growth
525,Browne Jacobson,Capital Income,Capital Receipts,"Sharphill, Edwalton (Wells Lan",9081,Legal & Professional Services,07/03/22,Supplies & Services,137814,Capital Income,Neighbourhoods
524.4,Bist (Business It Support Team Limited,Finance & Corporate Services,Ict,Photocopiers,5017,Rental & Copy Charges,29/03/22,Supplies & Services,137319,Finance & Corporate Services,Corporate Services
522.48,Elexcel Ltd,Transformation,Economic Regeneration,Cotgrave Precinct,1885,Planned Maintenance Recharge,25/01/22,Supplies & Services,135613,Transformation,Economic Growth
521,Espo,Neighbourhoods,Strategic Housing,Hostel Hound Lodge,1111,Other Equipment/Materials,16/02/22,Supplies & Services,137390,Neighbourhoods,Public Protection
520,Hillcrest Bed & Breakfast,Neighbourhoods,Strategic Housing,Homeless B&B,1110,Housing-Emergency Accommodn,07/03/22,Supplies & Services,138052,Neighbourhoods,Public Protection
520,Streetwise Environmental Ltd           1,Finance & Corporate Services,Democratic Services,Members Services,1000,Grants,25/01/22,Supplies & Services,135623,Finance & Corporate Services,Corporate Services
516,G2 Recruitment Solutions,Neighbourhoods,Environmental Health,Environmental Health Ha,4743,Agency Staff,14/01/22,Employee Related Expenditure,135961,Neighbourhoods,Public Protection
513.4,Eon,Transformation,Property Services,Unit 10 Moorbridge,4788,Electricity,22/03/22,Premises Related Expenditure,138510,Transformation,Economic Growth
505.66,Mewies Engineering Consultants Ltd,Neighbourhoods,Leisure Contracts & Car Parks,Edwalton Golf Courses,1400,Legal & Professional Services,14/01/22,Supplies & Services,135736,Neighbourhoods,Neighbourhoods
505,Nottingham City Council,Transformation,Human Resources,Corporate Training,4893,Training Expenses,08/03/22,Employee Related Expenditure,137803,Transformation,Chief Executive Department 
505,Nottingham City Council,Transformation,Human Resources,Corporate Training,4893,Training Expenses,29/03/22,Employee Related Expenditure,138704,Transformation,Chief Executive Department 
505,Pure Washrooms Ltd,Communities,Community Development,Gresham,8950,Maintenance Contracts - S&S,29/03/22,Supplies & Services,136187,Communities,Neighbourhoods
502.18,British Gas Business,Transformation,Property Services,Bridgford Hall,1883,Electricity,29/03/22,Premises Related Expenditure,138499,Transformation,Economic Growth
500.4,Ccs Media,Finance & Corporate Services,Ict,It Rechargeable Costs,4722,Software,22/03/22,Supplies & Services,135746,Finance & Corporate Services,Corporate Services
500,Morris Vermaport Ltd,Transformation,Economic Regeneration,Msc - Shared Core,1877,Service Maintenance Contracts,04/02/22,Premises Related Expenditure,136189,Transformation,Economic Growth
500,Morris Vermaport Ltd,Transformation,Property Services,New Offices - Cotgrave,4798,Service Maintenance Contracts,04/02/22,Premises Related Expenditure,136189,Transformation,Economic Growth
495,Mallard Consultancy Ltd,Neighbourhoods,Environmental Health,Housing Standards,1129,Legal & Professional Services,08/02/22,Supplies & Services,136358,Neighbourhoods,Public Protection
495,Mallard Consultancy Ltd,Neighbourhoods,Environmental Health,Public Health,1127,Legal & Professional Services,08/02/22,Supplies & Services,136358,Neighbourhoods,Public Protection
490.11,Acs Systems Uk Ltd T/A Acs Office Solutions,Finance & Corporate Services,Ict,It Rechargeable Costs,4722,Maintenance Contracts - S&S,25/02/22,Supplies & Services,133958,Finance & Corporate Services,Corporate Services
450,Blade Runners Commercial Ltd,Transformation,Property Services,The Point,1886,Contract Cleaning,25/02/22,Premises Related Expenditure,137285,Transformation,Economic Growth
450,Bridgford Energy Consultants Ltd,Transformation,Property Services,Land Holdings,1884,Legal & Professional Services,17/03/22,Supplies & Services,138570,Transformation,Economic Growth
365,Bridgford Energy Consultants Ltd,Transformation,Property Services,Bridgford Hall,1883,Legal & Professional Services,17/03/22,Supplies & Services,138570,Transformation,Economic Growth
350,Parkin Contractors Ltd,Transformation,Property Services,Arena Civic Centre,4718,Responsive Works - Buildings,02/02/22,Premises Related Expenditure,136086,Transformation,Economic Growth
336.78,Acs Systems Uk Ltd T/A Acs Office Solutions,Finance & Corporate Services,Ict,It Rechargeable Costs,4722,Software,25/02/22,Supplies & Services,133958,Finance & Corporate Services,Corporate Services
334.61,Stark Software International,Assets,Current Assets,West Leake Lane Kingston,7248,Electricity,29/03/22,Premises Related Expenditure,137051,Assets,Chief Executive Department 
334.61,Stark Software International,Communities,Community Development,Alford Road,8940,Electricity,29/03/22,Premises Related Expenditure,137051,Communities,Neighbourhoods
334.61,Stark Software International,Communities,Community Development,Gamston Community Hall,8992,Electricity,29/03/22,Premises Related Expenditure,137051,Communities,Neighbourhoods
334.61,Stark Software International,Communities,Community Development,Rushcliffe Country Park,1375,Electricity,29/03/22,Premises Related Expenditure,137051,Communities,Neighbourhoods
334.61,Stark Software International,Communities,Community Development,Sir Julien Cahn Pavilion,8993,Electricity,29/03/22,Premises Related Expenditure,137051,Communities,Neighbourhoods
331.24,Stark Software International,Communities,Community Development,Bridgford Park,8927,Electricity,29/03/22,Premises Related Expenditure,137051,Communities,Neighbourhoods
331.24,Stark Software International,Transformation,Economic Regeneration,Bingham Market Stalls,1880,Electricity,29/03/22,Premises Related Expenditure,137051,Transformation,Economic Growth
331.24,Stark Software International,Transformation,Property Services,Bridgford Hall,1883,Electricity,29/03/22,Premises Related Expenditure,137051,Transformation,Economic Growth
331.24,Stark Software International,Transformation,Property Services,The Point,1886,Electricity,29/03/22,Premises Related Expenditure,137051,Transformation,Economic Growth
315,Quantum Fire & Security Ltd,Transformation,Property Services,Cotgrave Hub/Msc - External,1870,Service Maintenance Contracts,17/03/22,Premises Related Expenditure,138094,Transformation,Economic Growth
284.15,Stark Software International,Neighbourhoods,Strategic Housing,Hostel Hound Lodge,1111,Electricity,29/03/22,Premises Related Expenditure,137051,Neighbourhoods,Public Protection
278.15,Stark Software International,Communities,Community Development,Gresham,8950,Electricity,29/03/22,Premises Related Expenditure,137051,Communities,Neighbourhoods
261.5,Reach Publishing Services Limited,Communities,Planning & Growth,Conservation,1171,Advertising,07/03/22,Supplies & Services,138138,Communities,Planning
250,Blade Runners Commercial Ltd,Transformation,Property Services,Arena Civic Centre,4718,Contract Cleaning,25/02/22,Premises Related Expenditure,137285,Transformation,Economic Growth
250,Stark Software International,Transformation,Property Services,Arena Civic Centre,4718,Electricity,29/03/22,Premises Related Expenditure,137051,Transformation,Economic Growth
250,Stark Software International,Transformation,Property Services,Unit 10 Moorbridge,4788,Electricity,29/03/22,Premises Related Expenditure,137051,Transformation,Economic Growth
241.5,Quantum Fire & Security Ltd,Transformation,Property Services,New Offices - Cotgrave,4798,Service Maintenance Contracts,17/03/22,Premises Related Expenditure,138094,Transformation,Economic Growth
234,Stark Software International,Communities,Community Development,Alford Road,8940,Gas,29/03/22,Premises Related Expenditure,137051,Communities,Neighbourhoods
234,Stark Software International,Communities,Community Development,Gamston Community Hall,8992,Gas,29/03/22,Premises Related Expenditure,137051,Communities,Neighbourhoods
234,Stark Software International,Communities,Community Development,Gresham,8950,Gas,29/03/22,Premises Related Expenditure,137051,Communities,Neighbourhoods
234,Stark Software International,Communities,Community Development,Sir Julien Cahn Pavilion,8993,Gas,29/03/22,Premises Related Expenditure,137051,Communities,Neighbourhoods
234,Stark Software International,Neighbourhoods,Strategic Housing,Hostel Hound Lodge,1111,Gas,29/03/22,Premises Related Expenditure,137051,Neighbourhoods,Public Protection
234,Stark Software International,Transformation,Property Services,Bridgford Hall,1883,Gas,29/03/22,Premises Related Expenditure,137051,Transformation,Economic Growth
230.85,Reach Publishing Services Limited,Communities,Planning & Growth,Conservation,1171,Advertising,01/03/22,Supplies & Services,137838,Communities,Planning
215,Bridgford Energy Consultants Ltd,Transformation,Property Services,Unit 10 Moorbridge,4788,Legal & Professional Services,17/03/22,Supplies & Services,138570,Transformation,Economic Growth
207.46,Stark Software International,Transformation,Property Services,Castle Donington,1863,Electricity,29/03/22,Premises Related Expenditure,137051,Transformation,Economic Growth
160,A.T Alarms,Capital Expenditure,Transformation & Innovation,U10 Moorbridge Security 21-22,208,Contractors-Third Party,25/01/22,Third Party Payments,135992,Capital Expenditure,Economic Growth
125.52,Reach Publishing Services Limited,Communities,Planning & Growth,Conservation,1171,Advertising,02/02/22,Supplies & Services,136809,Communities,Planning
121.73,Reach Publishing Services Limited,Communities,Planning & Growth,Conservation,1171,Advertising,04/01/22,Supplies & Services,133938,Communities,Planning
116.2,Reach Publishing Services Limited,Communities,Planning & Growth,Conservation,1171,Advertising,07/01/22,Supplies & Services,135441,Communities,Planning
115,Bridgford Energy Consultants Ltd,Transformation,Property Services,"Colliers, Cotgrave",1898,Legal & Professional Services,14/01/22,Supplies & Services,135451,Transformation,Economic Growth
90.44,Clearwater Technology Ltd,Communities,Community Development,Gresham,8950,Service Maintenance Contracts,29/03/22,Premises Related Expenditure,138371,Communities,Neighbourhoods
73,Clearwater Technology Ltd,Communities,Community Development,Alford Road,8940,Service Maintenance Contracts,29/03/22,Premises Related Expenditure,138371,Communities,Neighbourhoods
70.84,Clearwater Technology Ltd,Transformation,Property Services,Arena Civic Centre,4718,Service Maintenance Contracts,29/03/22,Premises Related Expenditure,138371,Transformation,Economic Growth
56.67,Clearwater Technology Ltd,Communities,Community Development,Rushcliffe Country Park,1375,Service Maintenance Contracts,29/03/22,Premises Related Expenditure,138371,Communities,Neighbourhoods
56.67,Clearwater Technology Ltd,Communities,Community Development,Sir Julien Cahn Pavilion,8993,Service Maintenance Contracts,29/03/22,Premises Related Expenditure,138371,Communities,Neighbourhoods
56.67,Clearwater Technology Ltd,Neighbourhoods,Strategic Housing,Hostel Hound Lodge,1111,Service Maintenance Contracts,29/03/22,Premises Related Expenditure,138371,Neighbourhoods,Public Protection
37.84,Clearwater Technology Ltd,Communities,Community Development,West Park,8994,Service Maintenance Contracts,29/03/22,Premises Related Expenditure,138371,Communities,Neighbourhoods
33.09,Clearwater Technology Ltd,Communities,Community Development,Gamston Community Hall,8992,Service Maintenance Contracts,29/03/22,Premises Related Expenditure,138371,Communities,Neighbourhoods
30,Clearwater Technology Ltd,Transformation,Property Services,Castle Donington,1863,Service Maintenance Contracts,29/03/22,Premises Related Expenditure,138371,Transformation,Economic Growth
25.84,Clearwater Technology Ltd,Transformation,Customer Services,Customer Services,4807,Service Maintenance Contracts,29/03/22,Premises Related Expenditure,138371,Transformation,Corporate Services
25.84,Clearwater Technology Ltd,Transformation,Property Services,The Point,1886,Service Maintenance Contracts,29/03/22,Premises Related Expenditure,138371,Transformation,Economic Growth
25.84,Clearwater Technology Ltd,Transformation,Property Services,Unit 10 Moorbridge,4788,Service Maintenance Contracts,29/03/22,Premises Related Expenditure,138371,Transformation,Economic Growth
20.13,Acs Systems Uk Ltd T/A Acs Office Solutions,Finance & Corporate Services,Ict,It Rechargeable Costs,4722,Consumables,25/02/22,Supplies & Services,137091,Finance & Corporate Services,Corporate Services
7.45,Teleware Plc,Finance & Corporate Services,Ict,Telephones,4870,Telephone Call Charges,16/02/22,Supplies & Services,137067,Finance & Corporate Services,Corporate Services
-99074.11,Nottinghamshire County Council,General Fund Summary,Cies,Taxn & Non Spec Grant Inc,1994,Precept & Surplus/Deficit,07/03/22,Transfers Income,137828,General Fund Summary,Finance
